Workbook

Sheet Elolap

Sheet Tamogatastartalom
M1: =IF(SUM(N7:N126)<C14,"A folyósítások összege kevesebb, mint a hitelösszeg","A folyósítások összege több, mint a hitelösszeg") -> A folyósítások összege kevesebb, mint a hitelösszeg | U1: =IF(SUM(V7:V126)<C14,"A törlesztések összege kevesebb, mint a hitelösszeg","A törlesztések összege több, mint a hitelösszeg") -> A törlesztések összege kevesebb, mint a hitelösszeg
B3: Ügyfél neve: | H3: EUR | I3: HUF | M3: Egyedi folyósítás dátuma | N3: Folyósítás összege | U3: Egyedi törlesztés dátuma | V3: Tőkeamortizáció egyedi törlesztés esetén | W3: periódusközi kamatszámítás | AB3: maradék kamatszámítás | AL3: Minimum kamat 2.3 | AO3: Támogatott konstruckió | AS3: Támogatástartalom (min 2.3)
D4: -0.04 | F4: Hitelösszeg (EUR) | H4: =IF(C9="HUF",C14/C10,C14) -> 1250 | I4: =IF(C9="HUF",C14,C14*arfolyam) -> 500000 | Q4: kamat (min 2.3) | R4: támogatott | W4: dátumtól | X4: tőke | Y4: kamat (min 2.3) | Z4: támogatott | AB4: dátumtól | AC4: amort | AD4: tőke | AE4: maradék (min 2.3) | AF4: t maradék | AJ4: Periodus | AK4: Dátum | AL4: Tőke | AM4: Tőkeamt. | AN4: Kamatfiz. | AO4: Tőke | AP4: Tőkeamt. | AQ4: Kamatfiz. | AS4: FV
B5: Pénzügyi intézmény neve refinanszírozás esetén: | D5: =IF(C13="Halászati",J10,IF(C13="Mezőgazdasági",J9,J8)) -> 250000 | F5: Ténylegesen felvett hitel támogatástartalma 2.1 | H5: =IF(C9="HUF",AS5/C10,AS5) -> 46.36459431 | I5: =IF(C9="HUF",AS5,AS5*C10) -> 18545.83772 | J5: =IFERROR(IF(D5-H5<=0,"Nem elegendő a 2.1 szabad keret","Elegendő a 2.1 szabad keret"),"") -> Elegendő a 2.1 szabad keret | Q5: =SUM(Q7:Q126) -> -4372.60274 | R5: =SUM(R7:R126) -> -1917.808219 | Y5: =SUM(Y7:Y126) -> 0 | Z5: =SUM(Z7:Z126) -> 0 | AE5: =SUM(AE7:AE126) -> -33034.77345 | AF5: =SUM(AF7:AF126) -> -14488.93572 | AL5: =+AL7 -> 500000 | AM5: =SUM(AM7:AM126) -> -500000 | AN5: =SUM(AN7:AN126) -> -33034.77345 | AO5: =+AO7 -> 500000 | AP5: =SUM(AP7:AP126) -> -500000 | AQ5: =SUM(AQ7:AQ126) -> -14488.93572 | AS5: =SUM(AS7:AS126) -> 18545.83772
K6: Törlesztésiidőszak vége? | AJ6: 0 | AK6: =MAX(C17,MIN(M7:M126)) -> 2023-02-01
K7: =AJ7>$D$15 -> FALSE | O7: =C17 -> 2023-02-01 | P7: =IF(ISBLANK(M7),C14,0) -> 500000 | Q7: =IF(AND(ISBLANK(M6),AI7<>1),0,IFERROR(-P7*minkamat23/365*(IF(ISBLANK(M7),$C$18,M7)-O7),"")) -> -4372.60274 | R7: =IF(AND(ISBLANK(M6),AI7<>1),0,IFERROR(-P7*tenylegeskamat/365*(IF(ISBLANK(M7),$C$18,M7)-O7),"")) -> -1917.808219 | S7: =IFERROR(IF(ISBLANK(M7),$C$18,M7)-O7,"") -> 28 | W7: =IF(ISNA(MAX(U6,INDEX(AK$6:AK$126,MATCH(U7-1,AK$6:AK$126,1)))),"",MAX(U6,INDEX(AK$6:AK$126,MATCH(U7-1,AK$6:AK$126,1)))) ->  | X7: =IF(ISNA(MIN(IF(OR(ISBLANK(X6),X6=""),INDEX(AL$7:AL$126,MATCH(U7,AK$7:AK$126,1)),X6-V6),INDEX(AL$7:AL$126,MATCH(U7,AK$7:AK$126,1)))),"",MIN(IF(OR(ISBLANK(X6),X6=""),INDEX(AL$7:AL$126,MATCH(U7,AK$7:AK$126,1)),X6-V6),INDEX(AL$7:AL$126,MATCH(U7,AK$7:AK$126,1)))) ->  | Y7: =IFERROR(-X7*minkamat23/365*(U7-W7),"") ->  | Z7: =IFERROR(-X7*tenylegeskamat/365*(U7-W7),"") ->  | AA7: =IFERROR(U7-W7,"") ->  | AB7: =MAX(AK6,IF(ISNA(INDEX(U$7:U$126,MATCH(AK7,U$7:U$126,1))),0,INDEX(U$7:U$126,MATCH(AK7,U$7:U$126,1)))) -> 2023-02-01 | AC7: =IF(ISNA(INDEX(V$7:V$126,MATCH(AK7,U$7:U$126,1))),0,INDEX(V$7:V$126,MATCH(AK7,U$7:U$126,1))) -> 0 | AD7: =IF(ISNA(INDEX(X$7:X$126,MATCH(AK7,U$7:U$126,1))),AL7,INDEX(X$7:X$126,MATCH(AK7,U$7:U$126,1))) -> 500000 | AE7: =IFERROR(-(AD7-AC7)*minkamat23/365*(AK7-AB7),0) -> -4372.60274 | AF7: =IFERROR(-(AD7-AC7)*tenylegeskamat/365*(AK7-AB7),0) -> -1917.808219 | AG7: =IFERROR(AK7-AB7,"") -> 28 | AI7: 1 | AJ7: =+IF(C19-C18<>0,1,"") -> 1 | AK7: =C18 -> 2023-03-01 | AL7: =IF(+C14<>0,C14,IF(AJ7>0,C14*K7,"")) -> 500000 | AM7: =IF(torlesztes="Egyedi",-SUMIFS(V$7:V$126,U$7:U$126,">"&AK6,U$7:U$126,"<="&AK7),IFERROR(IF(torlesztes="Egyenlő tőke",IF(COUNT($AL$7:AL7)>$D$15,"",-$AL$5/$D$15),0),"")) -> -38461.53846 | AN7: =SUM(Q7:Q126) -> -4372.60274 | AO7: =AL7 -> 500000 | AP7: =IF(torlesztes="Egyedi",-SUMIFS(V$7:V$126,U$7:U$126,">"&AK6,U$7:U$126,"<="&AK7),IFERROR(IF(torlesztes="Egyenlő tőke",IF(COUNT($AO$7:AO7)>$D$15,"",-$AL$5/$D$15),0),"")) -> -38461.53846 | AQ7: =SUM(R7:R126) -> -1917.808219 | AS7: =IFERROR(MAX((ABS(AN7)-ABS(AQ7)),0),"") -> 2454.794521 | AT7: =IFERROR(AK7-AK6,"") -> 28
B8: HITELKARAKTERISZTIKA | F8: Válságkezelési közlemény 2.1 alapján megítélt támogatásokon felül igénybe vehető szabad keret (EUR) | G8: Általános szabály | J8: =IF(2000000-C27-C28-C29<=0,"Nincs szabad keret, nem finanszírozható",2000000-C27-C28-C29) -> 2000000 | K8: FALSE | O8: =IF(ISBLANK(M7),"",M7) ->  | P8: =IF(ISBLANK(M7),0,N7+P7) -> 0 | Q8: 0 | R8: 0 | AB8: 2023-03-01 | AC8: 0 | AD8: 461538.4615 | AE8: -4468.703899 | AF8: -1959.95785 | AG8: 31 | AI8: 2 | AJ8: =IF(COUNT(AK8)=1,AJ7+1,"") -> 2 | AK8: =IF(OR(AK7=$C$19,AK7=""),"",IFERROR(IF(EDATE($C$18,(AI8-1)*12/$D$19)<=$C$19,EDATE($C$18,(AI8-1)*12/$D$19),$C$19),"")) -> 2023-04-01 | AL8: =+IF(COUNT(AL7)<>0,SUM(AL7:AM7)*(1-K8),"") -> 461538.4615 | AM8: =IF(torlesztes="Egyedi",-SUMIFS(V$7:V$126,U$7:U$126,">"&AK7,U$7:U$126,"<="&AK8),IFERROR(IF(torlesztes="Egyenlő tőke",IF(COUNT($AL$7:AL8)>$D$15,"",-$AL$5/$D$15),0),"")) -> -38461.53846 | AN8: =IF(torlesztes="Egyedi",SUMIFS(Y$7:Y$126,U$7:U$126,">"&AK7,U$7:U$126,"<="&AK8)+AE8,IFERROR(-AL8*minkamat23/365*(AK8-AK7),"")) -> -4468.703899 | AO8: =+IF(COUNT(AO7)<>0,SUM(AO7:AP7)*(1-K8),"") -> 461538.4615 | AP8: =IF(torlesztes="Egyedi",-SUMIFS(V$7:V$126,U$7:U$126,">"&AK7,U$7:U$126,"<="&AK8),IFERROR(IF(torlesztes="Egyenlő tőke",IF(COUNT($AO$7:AO8)>$D$15,"",-$AL$5/$D$15),0),"")) -> -38461.53846 | AQ8: =IF(torlesztes="Egyedi",SUMIFS(Z$7:Z$126,U$7:U$126,">"&AK7,U$7:U$126,"<="&AK8)+AF8,IFERROR(-AO8*tenylegeskamat/365*(AK8-AK7),"")) -> -1959.95785 | AS8: =IFERROR(MAX((ABS(AN8)-ABS(AQ8)),0),"") -> 2508.746048 | AT8: 31
B9: Hitel devizaneme | C9: HUF | D9: Makrohoz kellenek (ne töröld ki!): | G9: Mezőgazdasági szabály | J9: =IF(mezogazdkizarok=0,"Nem releváns",IF(MIN(250000-C27,2000000-C27-C28-C29,300000-C27-C28)<=0,"Nincs szabad keret, nem finanszírozható",MIN(250000-C27,2000000-C27-C28-C29,300000-C27-C28))) -> 250000 | K9: FALSE | O9: =IF(ISBLANK(M8),"",M8) ->  | P9: =IF(ISBLANK(M8),0,N8+P8) -> 0 | Q9: 0 | R9: 0 | AB9: 2023-04-01 | AC9: 0 | AD9: 423076.9231 | AE9: -3964.172813 | AF9: -1738.672287 | AG9: 30 | AI9: 3 | AJ9: =IF(COUNT(AK9)=1,AJ8+1,"") -> 3 | AK9: 2023-05-01 | AL9: 423076.9231 | AM9: =IF(torlesztes="Egyedi",-SUMIFS(V$7:V$126,U$7:U$126,">"&AK8,U$7:U$126,"<="&AK9),IFERROR(IF(torlesztes="Egyenlő tőke",IF(COUNT($AL$7:AL9)>$D$15,"",-$AL$5/$D$15),0),"")) -> -38461.53846 | AN9: -3964.172813 | AO9: 423076.9231 | AP9: =IF(torlesztes="Egyedi",-SUMIFS(V$7:V$126,U$7:U$126,">"&AK8,U$7:U$126,"<="&AK9),IFERROR(IF(torlesztes="Egyenlő tőke",IF(COUNT($AO$7:AO9)>$D$15,"",-$AL$5/$D$15),0),"")) -> -38461.53846 | AQ9: -1738.672287 | AS9: 2225.500527 | AT9: 30
B10: HUF/EUR árfolyam | C10: 400 | G10: Halászati szabály | J10: =IF(halaszatikizarok=0,"Nem releváns",IF(MIN(300000-C28,2000000-C27-C28-C29,300000-C27-C28)<=0,"Nincs szabad keret, nem finanszírozható",MIN(300000-C28,2000000-C27-C28-C29,300000-C27-C28))) -> Nem releváns | K10: FALSE | P10: 0 | Q10: 0 | R10: 0 | AB10: 2023-05-01 | AC10: 0 | AD10: 384615.3846 | AE10: -3723.919916 | AF10: -1633.298209 | AG10: 31 | AI10: 4 | AJ10: =IF(COUNT(AK10)=1,AJ9+1,"") -> 4 | AK10: 2023-06-01 | AL10: 384615.3846 | AM10: =IF(torlesztes="Egyedi",-SUMIFS(V$7:V$126,U$7:U$126,">"&AK9,U$7:U$126,"<="&AK10),IFERROR(IF(torlesztes="Egyenlő tőke",IF(COUNT($AL$7:AL10)>$D$15,"",-$AL$5/$D$15),0),"")) -> -38461.53846 | AN10: -3723.919916 | AO10: 384615.3846 | AP10: =IF(torlesztes="Egyedi",-SUMIFS(V$7:V$126,U$7:U$126,">"&AK9,U$7:U$126,"<="&AK10),IFERROR(IF(torlesztes="Egyenlő tőke",IF(COUNT($AO$7:AO10)>$D$15,"",-$AL$5/$D$15),0),"")) -> -38461.53846 | AQ10: -1633.298209 | AS10: 2090.621707 | AT10: 31
B11: Hitel fajtája | C11: Nem rulírozó | K11: FALSE | P11: 0 | Q11: 0 | R11: 0 | AB11: 2023-06-01 | AC11: 0 | AD11: 346153.8462 | AE11: -3243.41412 | AF11: -1422.550053 | AG11: 30 | AI11: 5 | AJ11: 5 | AK11: 2023-07-01 | AL11: 346153.8462 | AM11: =IF(torlesztes="Egyedi",-SUMIFS(V$7:V$126,U$7:U$126,">"&AK10,U$7:U$126,"<="&AK11),IFERROR(IF(torlesztes="Egyenlő tőke",IF(COUNT($AL$7:AL11)>$D$15,"",-$AL$5/$D$15),0),"")) -> -38461.53846 | AN11: -3243.41412 | AO11: 346153.8462 | AP11: =IF(torlesztes="Egyedi",-SUMIFS(V$7:V$126,U$7:U$126,">"&AK10,U$7:U$126,"<="&AK11),IFERROR(IF(torlesztes="Egyenlő tőke",IF(COUNT($AO$7:AO11)>$D$15,"",-$AL$5/$D$15),0),"")) -> -38461.53846 | AQ11: -1422.550053 | AS11: 1820.864067 | AT11: 30
B12: Vállalat mérete | C12: KKV | D12: 0.0001 | K12: FALSE | P12: 0 | Q12: 0 | R12: 0 | AB12: 2023-07-01 | AC12: 0 | AD12: 307692.3077 | AE12: -2979.135933 | AF12: -1306.638567 | AG12: 31 | AI12: 6 | AJ12: 6 | AK12: 2023-08-01 | AL12: 307692.3077 | AM12: =IF(torlesztes="Egyedi",-SUMIFS(V$7:V$126,U$7:U$126,">"&AK11,U$7:U$126,"<="&AK12),IFERROR(IF(torlesztes="Egyenlő tőke",IF(COUNT($AL$7:AL12)>$D$15,"",-$AL$5/$D$15),0),"")) -> -38461.53846 | AN12: -2979.135933 | AO12: 307692.3077 | AP12: =IF(torlesztes="Egyedi",-SUMIFS(V$7:V$126,U$7:U$126,">"&AK11,U$7:U$126,"<="&AK12),IFERROR(IF(torlesztes="Egyenlő tőke",IF(COUNT($AO$7:AO12)>$D$15,"",-$AL$5/$D$15),0),"")) -> -38461.53846 | AQ12: -1306.638567 | AS12: 1672.497366 | AT12: 31
B13: Válságkezelési közlemény 2.1 szakasza szerinti ágazat (a hitel céljához kapcsolódó TEÁOR alapján) | C13: Mezőgazdasági | K13: FALSE | P13: 0 | Q13: 0 | R13: 0 | AB13: 2023-08-01 | AC13: 0 | AD13: 269230.7692 | AE13: -2606.743941 | AF13: -1143.308746 | AG13: 31 | AI13: 7 | AJ13: 7 | AK13: 2023-09-01 | AL13: 269230.7692 | AM13: =IF(torlesztes="Egyedi",-SUMIFS(V$7:V$126,U$7:U$126,">"&AK12,U$7:U$126,"<="&AK13),IFERROR(IF(torlesztes="Egyenlő tőke",IF(COUNT($AL$7:AL13)>$D$15,"",-$AL$5/$D$15),0),"")) -> -38461.53846 | AN13: -2606.743941 | AO13: 269230.7692 | AP13: =IF(torlesztes="Egyedi",-SUMIFS(V$7:V$126,U$7:U$126,">"&AK12,U$7:U$126,"<="&AK13),IFERROR(IF(torlesztes="Egyenlő tőke",IF(COUNT($AO$7:AO13)>$D$15,"",-$AL$5/$D$15),0),"")) -> -38461.53846 | AQ13: -1143.308746 | AS13: 1463.435195 | AT13: 31
B14: ="Hitelösszeg ("&C9&")" -> Hitelösszeg (HUF) | C14: 500000 | K14: FALSE | P14: 0 | Q14: 0 | R14: 0 | AB14: 2023-09-01 | AC14: 0 | AD14: 230769.2308 | AE14: -2162.27608 | AF14: -948.3667018 | AG14: 30 | AI14: 8 | AJ14: 8 | AK14: 2023-10-01 | AL14: 230769.2308 | AM14: =IF(torlesztes="Egyedi",-SUMIFS(V$7:V$126,U$7:U$126,">"&AK13,U$7:U$126,"<="&AK14),IFERROR(IF(torlesztes="Egyenlő tőke",IF(COUNT($AL$7:AL14)>$D$15,"",-$AL$5/$D$15),0),"")) -> -38461.53846 | AN14: -2162.27608 | AO14: 230769.2308 | AP14: =IF(torlesztes="Egyedi",-SUMIFS(V$7:V$126,U$7:U$126,">"&AK13,U$7:U$126,"<="&AK14),IFERROR(IF(torlesztes="Egyenlő tőke",IF(COUNT($AO$7:AO14)>$D$15,"",-$AL$5/$D$15),0),"")) -> -38461.53846 | AQ14: -948.3667018 | AS14: 1213.909378 | AT14: 30
B15: =IF(OR(C15<6,C15>D24),"Minimum 6 hónap, maximum "&D24&" hónap lehet","Futamidő (hónap)") -> Futamidő (hónap) | C15: 12 | D15: =COUNT(AJ7:AJ126) -> 13 | K15: FALSE | P15: 0 | Q15: 0 | R15: 0 | AB15: 2023-10-01 | AC15: 0 | AD15: 192307.6923 | AE15: -1861.959958 | AF15: -816.6491043 | AG15: 31 | AI15: 9 | AJ15: 9 | AK15: 2023-11-01 | AL15: 192307.6923 | AM15: =IF(torlesztes="Egyedi",-SUMIFS(V$7:V$126,U$7:U$126,">"&AK14,U$7:U$126,"<="&AK15),IFERROR(IF(torlesztes="Egyenlő tőke",IF(COUNT($AL$7:AL15)>$D$15,"",-$AL$5/$D$15),0),"")) -> -38461.53846 | AN15: -1861.959958 | AO15: 192307.6923 | AP15: =IF(torlesztes="Egyedi",-SUMIFS(V$7:V$126,U$7:U$126,">"&AK14,U$7:U$126,"<="&AK15),IFERROR(IF(torlesztes="Egyenlő tőke",IF(COUNT($AO$7:AO15)>$D$15,"",-$AL$5/$D$15),0),"")) -> -38461.53846 | AQ15: -816.6491043 | AS15: 1045.310854 | AT15: 31
B16: Hitel jóváhagyásának várható időpontja (EXIM döntés dátuma) | C16: 2023-01-01 | K16: FALSE | P16: 0 | Q16: 0 | R16: 0 | AB16: 2023-11-01 | AC16: 0 | AD16: 153846.1538 | AE16: -1441.517387 | AF16: -632.2444679 | AG16: 30 | AI16: 10 | AJ16: =IF(COUNT(AK16)=1,AJ15+1,"") -> 10 | AK16: 2023-12-01 | AL16: 153846.1538 | AM16: =IF(torlesztes="Egyedi",-SUMIFS(V$7:V$126,U$7:U$126,">"&AK15,U$7:U$126,"<="&AK16),IFERROR(IF(torlesztes="Egyenlő tőke",IF(COUNT($AL$7:AL16)>$D$15,"",-$AL$5/$D$15),0),"")) -> -38461.53846 | AN16: -1441.517387 | AO16: 153846.1538 | AP16: =IF(torlesztes="Egyedi",-SUMIFS(V$7:V$126,U$7:U$126,">"&AK15,U$7:U$126,"<="&AK16),IFERROR(IF(torlesztes="Egyenlő tőke",IF(COUNT($AO$7:AO16)>$D$15,"",-$AL$5/$D$15),0),"")) -> -38461.53846 | AQ16: -632.2444679 | AS16: 809.2729189 | AT16: 30
B17: ="Szerződéskötés várható dátuma"&IF(C17>DATE(2023,12,31)," - Nem lehet későbbi, mint 2023.12.31","") -> Szerződéskötés várható dátuma | C17: 2023-02-01 | K17: FALSE | P17: 0 | Q17: 0 | R17: 0 | AB17: 2023-12-01 | AC17: 0 | AD17: 115384.6154 | AE17: -1117.175975 | AF17: -489.9894626 | AG17: 31 | AI17: 11 | AJ17: =IF(COUNT(AK17)=1,AJ16+1,"") -> 11 | AK17: 2024-01-01 | AL17: 115384.6154 | AM17: =IF(torlesztes="Egyedi",-SUMIFS(V$7:V$126,U$7:U$126,">"&AK16,U$7:U$126,"<="&AK17),IFERROR(IF(torlesztes="Egyenlő tőke",IF(COUNT($AL$7:AL17)>$D$15,"",-$AL$5/$D$15),0),"")) -> -38461.53846 | AN17: -1117.175975 | AO17: 115384.6154 | AP17: =IF(torlesztes="Egyedi",-SUMIFS(V$7:V$126,U$7:U$126,">"&AK16,U$7:U$126,"<="&AK17),IFERROR(IF(torlesztes="Egyenlő tőke",IF(COUNT($AO$7:AO17)>$D$15,"",-$AL$5/$D$15),0),"")) -> -38461.53846 | AQ17: -489.9894626 | AS17: 627.1865121 | AT17: 31
B18: =IF(C18>C19,"Nem lehet későbbi, mint a végső lejárat!","Első törlesztés várható dátuma") -> Első törlesztés várható dátuma | C18: 2023-03-01 | K18: FALSE | P18: 0 | Q18: 0 | R18: 0 | AB18: 2024-01-01 | AC18: 0 | AD18: 76923.07692 | AE18: -744.7839831 | AF18: -326.6596417 | AG18: 31 | AI18: 12 | AJ18: 12 | AK18: 2024-02-01 | AL18: 76923.07692 | AM18: =IF(torlesztes="Egyedi",-SUMIFS(V$7:V$126,U$7:U$126,">"&AK17,U$7:U$126,"<="&AK18),IFERROR(IF(torlesztes="Egyenlő tőke",IF(COUNT($AL$7:AL18)>$D$15,"",-$AL$5/$D$15),0),"")) -> -38461.53846 | AN18: -744.7839831 | AO18: 76923.07692 | AP18: =IF(torlesztes="Egyedi",-SUMIFS(V$7:V$126,U$7:U$126,">"&AK17,U$7:U$126,"<="&AK18),IFERROR(IF(torlesztes="Egyenlő tőke",IF(COUNT($AO$7:AO18)>$D$15,"",-$AL$5/$D$15),0),"")) -> -38461.53846 | AQ18: -326.6596417 | AS18: 418.1243414 | AT18: 31
B19: =IF(C19>EDATE(C17,D24),"A futamidő nem haladhatja meg a "&D24&" hónapot","Hitel végső lejáratának várható dátuma") -> Hitel végső lejáratának várható dátuma | C19: 2024-03-01 | D19: =VLOOKUP($C$24,Adatok!P3:Q5,2,0) -> 12 | K19: FALSE | P19: 0 | Q19: 0 | R19: 0 | AB19: 2024-02-01 | AC19: 0 | AD19: 38461.53846 | AE19: -348.3667018 | AF19: -152.7924131 | AG19: 29 | AI19: 13 | AJ19: 13 | AK19: 2024-03-01 | AL19: 38461.53846 | AM19: =IF(torlesztes="Egyedi",-SUMIFS(V$7:V$126,U$7:U$126,">"&AK18,U$7:U$126,"<="&AK19),IFERROR(IF(torlesztes="Egyenlő tőke",IF(COUNT($AL$7:AL19)>$D$15,"",-$AL$5/$D$15),0),"")) -> -38461.53846 | AN19: -348.3667018 | AO19: 38461.53846 | AP19: =IF(torlesztes="Egyedi",-SUMIFS(V$7:V$126,U$7:U$126,">"&AK18,U$7:U$126,"<="&AK19),IFERROR(IF(torlesztes="Egyenlő tőke",IF(COUNT($AO$7:AO19)>$D$15,"",-$AL$5/$D$15),0),"")) -> -38461.53846 | AQ19: -152.7924131 | AS19: 195.5742887 | AT19: 29
B20: =IF(AND(tenylegeskamat>=D21,tenylegeskamat<=D22),"Tényleges ügyleti kamat","Nem megfelelő kamatérték!") -> Tényleges ügyleti kamat | C20: 0.05 | K20: TRUE | P20: 0 | Q20: 0 | R20: 0 | AB20: 2024-03-01 | AC20: 0 | AD20: 0 | AE20: 0 | AF20: 0 | AI20: 14 | AL20: 0 | AM20: =IF(torlesztes="Egyedi",-SUMIFS(V$7:V$126,U$7:U$126,">"&AK19,U$7:U$126,"<="&AK20),IFERROR(IF(torlesztes="Egyenlő tőke",IF(COUNT($AL$7:AL20)>$D$15,"",-$AL$5/$D$15),0),"")) ->  | AO20: 0 | AP20: =IF(torlesztes="Egyedi",-SUMIFS(V$7:V$126,U$7:U$126,">"&AK19,U$7:U$126,"<="&AK20),IFERROR(IF(torlesztes="Egyenlő tőke",IF(COUNT($AO$7:AO20)>$D$15,"",-$AL$5/$D$15),0),"")) -> 
B21: Minimum kamat 2.3 alapján | C21: =IF(C9="EUR",OFFSET(Adatok!$I$18,MATCH(C12,Adatok!$I$19:$I$20,0),MATCH(C15,Adatok!$J$18:$P$18,1),),OFFSET(Adatok!$I$21,MATCH(C12,Adatok!$I$19:$I$20,0),MATCH(C15,Adatok!$J$18:$P$18,1),)) -> 0.114 | D21: =IF(C9="EUR",Adatok!J14,Adatok!K14) -> 0.035 | K21: TRUE | P21: 0 | Q21: 0 | R21: 0 | AB21: 00:00:00 | AC21: 0 | AD21: 0 | AE21: 0 | AF21: 0 | AI21: 15 | AL21: 0 | AM21: =IF(torlesztes="Egyedi",-SUMIFS(V$7:V$126,U$7:U$126,">"&AK20,U$7:U$126,"<="&AK21),IFERROR(IF(torlesztes="Egyenlő tőke",IF(COUNT($AL$7:AL21)>$D$15,"",-$AL$5/$D$15),0),"")) ->  | AO21: 0 | AP21: =IF(torlesztes="Egyedi",-SUMIFS(V$7:V$126,U$7:U$126,">"&AK20,U$7:U$126,"<="&AK21),IFERROR(IF(torlesztes="Egyenlő tőke",IF(COUNT($AO$7:AO21)>$D$15,"",-$AL$5/$D$15),0),"")) -> 
B22: Támogatás jogalapja | C22: =IF(tenylegeskamat>=minkamat23,"2.3 szerinti","2.1 szerinti") -> 2.1 szerinti | D22: =IF(C9="EUR",Adatok!J15,Adatok!K15) -> 0.06 | K22: TRUE | P22: 0 | Q22: 0 | R22: 0 | AB22: 00:00:00 | AC22: 0 | AD22: 0 | AE22: 0 | AF22: 0 | AI22: 16 | AL22: 0 | AM22: =IF(torlesztes="Egyedi",-SUMIFS(V$7:V$126,U$7:U$126,">"&AK21,U$7:U$126,"<="&AK22),IFERROR(IF(torlesztes="Egyenlő tőke",IF(COUNT($AL$7:AL22)>$D$15,"",-$AL$5/$D$15),0),"")) ->  | AO22: 0 | AP22: =IF(torlesztes="Egyedi",-SUMIFS(V$7:V$126,U$7:U$126,">"&AK21,U$7:U$126,"<="&AK22),IFERROR(IF(torlesztes="Egyenlő tőke",IF(COUNT($AO$7:AO22)>$D$15,"",-$AL$5/$D$15),0),"")) -> 
B23: Törlesztés módja | C23: Egyenlő tőke | K23: TRUE | P23: 0 | Q23: 0 | R23: 0 | AB23: 00:00:00 | AC23: 0 | AD23: 0 | AE23: 0 | AF23: 0 | AI23: 17 | AL23: 0 | AM23: =IF(torlesztes="Egyedi",-SUMIFS(V$7:V$126,U$7:U$126,">"&AK22,U$7:U$126,"<="&AK23),IFERROR(IF(torlesztes="Egyenlő tőke",IF(COUNT($AL$7:AL23)>$D$15,"",-$AL$5/$D$15),0),"")) ->  | AO23: 0 | AP23: =IF(torlesztes="Egyedi",-SUMIFS(V$7:V$126,U$7:U$126,">"&AK22,U$7:U$126,"<="&AK23),IFERROR(IF(torlesztes="Egyenlő tőke",IF(COUNT($AO$7:AO23)>$D$15,"",-$AL$5/$D$15),0),"")) -> 
B24: =IF(torlesztes="Egyenlő tőke","Kamatfizetés/tőketörlesztés gyakorisága","Kamatfizetés gyakorisága") -> Kamatfizetés/tőketörlesztés gyakorisága | C24: Havi | D24: =IF(C11="Rulírozó",24,36) -> 36 | K24: TRUE | P24: 0 | Q24: 0 | R24: 0 | AB24: 00:00:00 | AC24: 0 | AD24: 0 | AE24: 0 | AF24: 0 | AI24: 18 | AL24: 0 | AM24: =IF(torlesztes="Egyedi",-SUMIFS(V$7:V$126,U$7:U$126,">"&AK23,U$7:U$126,"<="&AK24),IFERROR(IF(torlesztes="Egyenlő tőke",IF(COUNT($AL$7:AL24)>$D$15,"",-$AL$5/$D$15),0),"")) ->  | AO24: 0 | AP24: =IF(torlesztes="Egyedi",-SUMIFS(V$7:V$126,U$7:U$126,">"&AK23,U$7:U$126,"<="&AK24),IFERROR(IF(torlesztes="Egyenlő tőke",IF(COUNT($AO$7:AO24)>$D$15,"",-$AL$5/$D$15),0),"")) -> 
K25: TRUE | P25: 0 | Q25: 0 | R25: 0 | AB25: 00:00:00 | AC25: 0 | AD25: 0 | AE25: 0 | AF25: 0 | AI25: 19 | AL25: 0 | AM25: =IF(torlesztes="Egyedi",-SUMIFS(V$7:V$126,U$7:U$126,">"&AK24,U$7:U$126,"<="&AK25),IFERROR(IF(torlesztes="Egyenlő tőke",IF(COUNT($AL$7:AL25)>$D$15,"",-$AL$5/$D$15),0),"")) ->  | AO25: 0 | AP25: =IF(torlesztes="Egyedi",-SUMIFS(V$7:V$126,U$7:U$126,">"&AK24,U$7:U$126,"<="&AK25),IFERROR(IF(torlesztes="Egyenlő tőke",IF(COUNT($AO$7:AO25)>$D$15,"",-$AL$5/$D$15),0),"")) -> 
B26: Nem azonos elszámolható költségekre megítélt Válságkezelési Közlemény 2.1 szerinti állami támogatások | K26: TRUE | P26: 0 | Q26: 0 | R26: 0 | AB26: 00:00:00 | AC26: 0 | AD26: 0 | AE26: 0 | AF26: 0 | AI26: 20 | AL26: 0 | AM26: =IF(torlesztes="Egyedi",-SUMIFS(V$7:V$126,U$7:U$126,">"&AK25,U$7:U$126,"<="&AK26),IFERROR(IF(torlesztes="Egyenlő tőke",IF(COUNT($AL$7:AL26)>$D$15,"",-$AL$5/$D$15),0),"")) ->  | AO26: 0 | AP26: =IF(torlesztes="Egyedi",-SUMIFS(V$7:V$126,U$7:U$126,">"&AK25,U$7:U$126,"<="&AK26),IFERROR(IF(torlesztes="Egyenlő tőke",IF(COUNT($AO$7:AO26)>$D$15,"",-$AL$5/$D$15),0),"")) -> 
B27: Mezőgazdasági ágazatra megítélt támogatás teljes összege (EUR): | C27: 0 | K27: TRUE | P27: 0 | Q27: 0 | R27: 0 | AB27: 00:00:00 | AC27: 0 | AD27: 0 | AE27: 0 | AF27: 0 | AI27: 21 | AL27: 0 | AM27: =IF(torlesztes="Egyedi",-SUMIFS(V$7:V$126,U$7:U$126,">"&AK26,U$7:U$126,"<="&AK27),IFERROR(IF(torlesztes="Egyenlő tőke",IF(COUNT($AL$7:AL27)>$D$15,"",-$AL$5/$D$15),0),"")) ->  | AO27: 0 | AP27: =IF(torlesztes="Egyedi",-SUMIFS(V$7:V$126,U$7:U$126,">"&AK26,U$7:U$126,"<="&AK27),IFERROR(IF(torlesztes="Egyenlő tőke",IF(COUNT($AO$7:AO27)>$D$15,"",-$AL$5/$D$15),0),"")) -> 
B28: Halászati, akvakultúra ágazatra megítélt támogatás teljes összeg (EUR): | C28: 0 | K28: TRUE | P28: 0 | Q28: 0 | R28: 0 | AB28: 00:00:00 | AC28: 0 | AD28: 0 | AE28: 0 | AF28: 0 | AI28: 22 | AL28: 0 | AM28: =IF(torlesztes="Egyedi",-SUMIFS(V$7:V$126,U$7:U$126,">"&AK27,U$7:U$126,"<="&AK28),IFERROR(IF(torlesztes="Egyenlő tőke",IF(COUNT($AL$7:AL28)>$D$15,"",-$AL$5/$D$15),0),"")) ->  | AO28: 0 | AP28: =IF(torlesztes="Egyedi",-SUMIFS(V$7:V$126,U$7:U$126,">"&AK27,U$7:U$126,"<="&AK28),IFERROR(IF(torlesztes="Egyenlő tőke",IF(COUNT($AO$7:AO28)>$D$15,"",-$AL$5/$D$15),0),"")) -> 
B29: Egyéb ágazatra megítélt támogatás tejes összege (EUR): | C29: 0 | K29: TRUE | P29: 0 | Q29: 0 | R29: 0 | AB29: 00:00:00 | AC29: 0 | AD29: 0 | AE29: 0 | AF29: 0 | AI29: 23 | AJ29: =IF(COUNT(AK29)=1,AJ28+1,"") ->  | AL29: 0 | AM29: =IF(torlesztes="Egyedi",-SUMIFS(V$7:V$126,U$7:U$126,">"&AK28,U$7:U$126,"<="&AK29),IFERROR(IF(torlesztes="Egyenlő tőke",IF(COUNT($AL$7:AL29)>$D$15,"",-$AL$5/$D$15),0),"")) ->  | AO29: 0 | AP29: =IF(torlesztes="Egyedi",-SUMIFS(V$7:V$126,U$7:U$126,">"&AK28,U$7:U$126,"<="&AK29),IFERROR(IF(torlesztes="Egyenlő tőke",IF(COUNT($AO$7:AO29)>$D$15,"",-$AL$5/$D$15),0),"")) -> 
K30: TRUE | P30: 0 | Q30: 0 | R30: 0 | AB30: 00:00:00 | AC30: 0 | AD30: 0 | AE30: 0 | AF30: 0 | AI30: 24 | AL30: 0 | AM30: =IF(torlesztes="Egyedi",-SUMIFS(V$7:V$126,U$7:U$126,">"&AK29,U$7:U$126,"<="&AK30),IFERROR(IF(torlesztes="Egyenlő tőke",IF(COUNT($AL$7:AL30)>$D$15,"",-$AL$5/$D$15),0),"")) ->  | AO30: 0 | AP30: =IF(torlesztes="Egyedi",-SUMIFS(V$7:V$126,U$7:U$126,">"&AK29,U$7:U$126,"<="&AK30),IFERROR(IF(torlesztes="Egyenlő tőke",IF(COUNT($AO$7:AO30)>$D$15,"",-$AL$5/$D$15),0),"")) -> 
K31: TRUE | P31: 0 | Q31: 0 | R31: 0 | AB31: 00:00:00 | AC31: 0 | AD31: 0 | AE31: 0 | AF31: 0 | AI31: 25 | AL31: 0 | AM31: =IF(torlesztes="Egyedi",-SUMIFS(V$7:V$126,U$7:U$126,">"&AK30,U$7:U$126,"<="&AK31),IFERROR(IF(torlesztes="Egyenlő tőke",IF(COUNT($AL$7:AL31)>$D$15,"",-$AL$5/$D$15),0),"")) ->  | AO31: 0 | AP31: =IF(torlesztes="Egyedi",-SUMIFS(V$7:V$126,U$7:U$126,">"&AK30,U$7:U$126,"<="&AK31),IFERROR(IF(torlesztes="Egyenlő tőke",IF(COUNT($AO$7:AO31)>$D$15,"",-$AL$5/$D$15),0),"")) -> 
K32: TRUE | P32: 0 | Q32: 0 | R32: 0 | AB32: 00:00:00 | AC32: 0 | AD32: 0 | AE32: 0 | AF32: 0 | AI32: 26 | AL32: 0 | AM32: =IF(torlesztes="Egyedi",-SUMIFS(V$7:V$126,U$7:U$126,">"&AK31,U$7:U$126,"<="&AK32),IFERROR(IF(torlesztes="Egyenlő tőke",IF(COUNT($AL$7:AL32)>$D$15,"",-$AL$5/$D$15),0),"")) ->  | AO32: 0 | AP32: =IF(torlesztes="Egyedi",-SUMIFS(V$7:V$126,U$7:U$126,">"&AK31,U$7:U$126,"<="&AK32),IFERROR(IF(torlesztes="Egyenlő tőke",IF(COUNT($AO$7:AO32)>$D$15,"",-$AL$5/$D$15),0),"")) -> 
K33: TRUE | P33: 0 | Q33: 0 | R33: 0 | AB33: 00:00:00 | AC33: 0 | AD33: 0 | AE33: 0 | AF33: 0 | AI33: 27 | AL33: 0 | AM33: =IF(torlesztes="Egyedi",-SUMIFS(V$7:V$126,U$7:U$126,">"&AK32,U$7:U$126,"<="&AK33),IFERROR(IF(torlesztes="Egyenlő tőke",IF(COUNT($AL$7:AL33)>$D$15,"",-$AL$5/$D$15),0),"")) ->  | AO33: 0 | AP33: =IF(torlesztes="Egyedi",-SUMIFS(V$7:V$126,U$7:U$126,">"&AK32,U$7:U$126,"<="&AK33),IFERROR(IF(torlesztes="Egyenlő tőke",IF(COUNT($AO$7:AO33)>$D$15,"",-$AL$5/$D$15),0),"")) -> 
K34: TRUE | P34: 0 | Q34: 0 | R34: 0 | AB34: 00:00:00 | AC34: 0 | AD34: 0 | AE34: 0 | AF34: 0 | AI34: 28 | AL34: 0 | AM34: =IF(torlesztes="Egyedi",-SUMIFS(V$7:V$126,U$7:U$126,">"&AK33,U$7:U$126,"<="&AK34),IFERROR(IF(torlesztes="Egyenlő tőke",IF(COUNT($AL$7:AL34)>$D$15,"",-$AL$5/$D$15),0),"")) ->  | AO34: 0 | AP34: =IF(torlesztes="Egyedi",-SUMIFS(V$7:V$126,U$7:U$126,">"&AK33,U$7:U$126,"<="&AK34),IFERROR(IF(torlesztes="Egyenlő tőke",IF(COUNT($AO$7:AO34)>$D$15,"",-$AL$5/$D$15),0),"")) -> 
K35: TRUE | P35: 0 | Q35: 0 | R35: 0 | AB35: 00:00:00 | AC35: 0 | AD35: 0 | AE35: 0 | AF35: 0 | AI35: 29 | AL35: 0 | AM35: =IF(torlesztes="Egyedi",-SUMIFS(V$7:V$126,U$7:U$126,">"&AK34,U$7:U$126,"<="&AK35),IFERROR(IF(torlesztes="Egyenlő tőke",IF(COUNT($AL$7:AL35)>$D$15,"",-$AL$5/$D$15),0),"")) ->  | AO35: 0 | AP35: =IF(torlesztes="Egyedi",-SUMIFS(V$7:V$126,U$7:U$126,">"&AK34,U$7:U$126,"<="&AK35),IFERROR(IF(torlesztes="Egyenlő tőke",IF(COUNT($AO$7:AO35)>$D$15,"",-$AL$5/$D$15),0),"")) -> 
K36: TRUE | P36: 0 | Q36: 0 | R36: 0 | AB36: 00:00:00 | AC36: 0 | AD36: 0 | AE36: 0 | AF36: 0 | AI36: 30 | AL36: 0 | AM36: =IF(torlesztes="Egyedi",-SUMIFS(V$7:V$126,U$7:U$126,">"&AK35,U$7:U$126,"<="&AK36),IFERROR(IF(torlesztes="Egyenlő tőke",IF(COUNT($AL$7:AL36)>$D$15,"",-$AL$5/$D$15),0),"")) ->  | AO36: 0 | AP36: =IF(torlesztes="Egyedi",-SUMIFS(V$7:V$126,U$7:U$126,">"&AK35,U$7:U$126,"<="&AK36),IFERROR(IF(torlesztes="Egyenlő tőke",IF(COUNT($AO$7:AO36)>$D$15,"",-$AL$5/$D$15),0),"")) -> 
K37: TRUE | P37: 0 | Q37: 0 | R37: 0 | AB37: 00:00:00 | AC37: 0 | AD37: 0 | AE37: 0 | AF37: 0 | AI37: 31 | AL37: 0 | AM37: =IF(torlesztes="Egyedi",-SUMIFS(V$7:V$126,U$7:U$126,">"&AK36,U$7:U$126,"<="&AK37),IFERROR(IF(torlesztes="Egyenlő tőke",IF(COUNT($AL$7:AL37)>$D$15,"",-$AL$5/$D$15),0),"")) ->  | AO37: 0 | AP37: =IF(torlesztes="Egyedi",-SUMIFS(V$7:V$126,U$7:U$126,">"&AK36,U$7:U$126,"<="&AK37),IFERROR(IF(torlesztes="Egyenlő tőke",IF(COUNT($AO$7:AO37)>$D$15,"",-$AL$5/$D$15),0),"")) -> 
K38: TRUE | P38: 0 | Q38: 0 | R38: 0 | AB38: 00:00:00 | AC38: 0 | AD38: 0 | AE38: 0 | AF38: 0 | AI38: 32 | AL38: 0 | AM38: =IF(torlesztes="Egyedi",-SUMIFS(V$7:V$126,U$7:U$126,">"&AK37,U$7:U$126,"<="&AK38),IFERROR(IF(torlesztes="Egyenlő tőke",IF(COUNT($AL$7:AL38)>$D$15,"",-$AL$5/$D$15),0),"")) ->  | AO38: 0 | AP38: =IF(torlesztes="Egyedi",-SUMIFS(V$7:V$126,U$7:U$126,">"&AK37,U$7:U$126,"<="&AK38),IFERROR(IF(torlesztes="Egyenlő tőke",IF(COUNT($AO$7:AO38)>$D$15,"",-$AL$5/$D$15),0),"")) -> 
K39: =AJ39>$D$15 -> TRUE | P39: 0 | Q39: =IF(AND(ISBLANK(M38),AI39<>1),0,IFERROR(-P39*minkamat23/365*(IF(ISBLANK(M39),$C$18,M39)-O39),"")) -> 0 | R39: =IF(AND(ISBLANK(M38),AI39<>1),0,IFERROR(-P39*tenylegeskamat/365*(IF(ISBLANK(M39),$C$18,M39)-O39),"")) -> 0 | S39: =IFERROR(IF(ISBLANK(M39),$C$18,M39)-O39,"") ->  | W39: =IF(ISNA(MAX(U38,INDEX(AK$6:AK$126,MATCH(U39-1,AK$6:AK$126,1)))),"",MAX(U38,INDEX(AK$6:AK$126,MATCH(U39-1,AK$6:AK$126,1)))) ->  | X39: =IF(ISNA(MIN(IF(OR(ISBLANK(X38),X38=""),INDEX(AL$7:AL$126,MATCH(U39,AK$7:AK$126,1)),X38-V38),INDEX(AL$7:AL$126,MATCH(U39,AK$7:AK$126,1)))),"",MIN(IF(OR(ISBLANK(X38),X38=""),INDEX(AL$7:AL$126,MATCH(U39,AK$7:AK$126,1)),X38-V38),INDEX(AL$7:AL$126,MATCH(U39,AK$7:AK$126,1)))) ->  | Y39: =IFERROR(-X39*minkamat23/365*(U39-W39),"") ->  | Z39: =IFERROR(-X39*tenylegeskamat/365*(U39-W39),"") ->  | AA39: =IFERROR(U39-W39,"") ->  | AB39: =MAX(AK38,IF(ISNA(INDEX(U$7:U$126,MATCH(AK39,U$7:U$126,1))),0,INDEX(U$7:U$126,MATCH(AK39,U$7:U$126,1)))) -> 00:00:00 | AC39: =IF(ISNA(INDEX(V$7:V$126,MATCH(AK39,U$7:U$126,1))),0,INDEX(V$7:V$126,MATCH(AK39,U$7:U$126,1))) -> 0 | AD39: =IF(ISNA(INDEX(X$7:X$126,MATCH(AK39,U$7:U$126,1))),AL39,INDEX(X$7:X$126,MATCH(AK39,U$7:U$126,1))) -> 0 | AE39: =IFERROR(-(AD39-AC39)*minkamat23/365*(AK39-AB39),0) -> 0 | AF39: =IFERROR(-(AD39-AC39)*tenylegeskamat/365*(AK39-AB39),0) -> 0 | AG39: =IFERROR(AK39-AB39,"") ->  | AI39: 33 | AL39: 0 | AM39: =IF(torlesztes="Egyedi",-SUMIFS(V$7:V$126,U$7:U$126,">"&AK38,U$7:U$126,"<="&AK39),IFERROR(IF(torlesztes="Egyenlő tőke",IF(COUNT($AL$7:AL39)>$D$15,"",-$AL$5/$D$15),0),"")) ->  | AO39: 0 | AP39: =IF(torlesztes="Egyedi",-SUMIFS(V$7:V$126,U$7:U$126,">"&AK38,U$7:U$126,"<="&AK39),IFERROR(IF(torlesztes="Egyenlő tőke",IF(COUNT($AO$7:AO39)>$D$15,"",-$AL$5/$D$15),0),"")) ->  | AT39: =IFERROR(AK39-AK38,"") -> 
K40: TRUE | P40: 0 | Q40: 0 | R40: 0 | AB40: 00:00:00 | AC40: 0 | AD40: 0 | AE40: 0 | AF40: 0 | AI40: 34 | AK40: =IF(OR(AK39=$C$19,AK39=""),"",IFERROR(IF(EDATE($C$18,(AI40-1)*12/$D$19)<=$C$19,EDATE($C$18,(AI40-1)*12/$D$19),$C$19),"")) ->  | AL40: =+IF(COUNT(AL39)<>0,SUM(AL39:AM39)*(1-K40),"") -> 0 | AM40: =IF(torlesztes="Egyedi",-SUMIFS(V$7:V$126,U$7:U$126,">"&AK39,U$7:U$126,"<="&AK40),IFERROR(IF(torlesztes="Egyenlő tőke",IF(COUNT($AL$7:AL40)>$D$15,"",-$AL$5/$D$15),0),"")) ->  | AN40: =IF(torlesztes="Egyedi",SUMIFS(Y$7:Y$126,U$7:U$126,">"&AK39,U$7:U$126,"<="&AK40)+AE40,IFERROR(-AL40*minkamat23/365*(AK40-AK39),"")) ->  | AO40: =+IF(COUNT(AO39)<>0,SUM(AO39:AP39)*(1-K40),"") -> 0 | AP40: =IF(torlesztes="Egyedi",-SUMIFS(V$7:V$126,U$7:U$126,">"&AK39,U$7:U$126,"<="&AK40),IFERROR(IF(torlesztes="Egyenlő tőke",IF(COUNT($AO$7:AO40)>$D$15,"",-$AL$5/$D$15),0),"")) ->  | AQ40: =IF(torlesztes="Egyedi",SUMIFS(Z$7:Z$126,U$7:U$126,">"&AK39,U$7:U$126,"<="&AK40)+AF40,IFERROR(-AO40*tenylegeskamat/365*(AK40-AK39),"")) -> 
K41: TRUE | P41: 0 | Q41: 0 | R41: 0 | AB41: 00:00:00 | AC41: 0 | AD41: 0 | AE41: 0 | AF41: 0 | AI41: 35 | AL41: 0 | AM41: =IF(torlesztes="Egyedi",-SUMIFS(V$7:V$126,U$7:U$126,">"&AK40,U$7:U$126,"<="&AK41),IFERROR(IF(torlesztes="Egyenlő tőke",IF(COUNT($AL$7:AL41)>$D$15,"",-$AL$5/$D$15),0),"")) ->  | AO41: 0 | AP41: =IF(torlesztes="Egyedi",-SUMIFS(V$7:V$126,U$7:U$126,">"&AK40,U$7:U$126,"<="&AK41),IFERROR(IF(torlesztes="Egyenlő tőke",IF(COUNT($AO$7:AO41)>$D$15,"",-$AL$5/$D$15),0),"")) -> 
K42: TRUE | P42: 0 | Q42: 0 | R42: 0 | AB42: 00:00:00 | AC42: 0 | AD42: 0 | AE42: 0 | AF42: 0 | AI42: 36 | AL42: 0 | AM42: =IF(torlesztes="Egyedi",-SUMIFS(V$7:V$126,U$7:U$126,">"&AK41,U$7:U$126,"<="&AK42),IFERROR(IF(torlesztes="Egyenlő tőke",IF(COUNT($AL$7:AL42)>$D$15,"",-$AL$5/$D$15),0),"")) ->  | AO42: 0 | AP42: =IF(torlesztes="Egyedi",-SUMIFS(V$7:V$126,U$7:U$126,">"&AK41,U$7:U$126,"<="&AK42),IFERROR(IF(torlesztes="Egyenlő tőke",IF(COUNT($AO$7:AO42)>$D$15,"",-$AL$5/$D$15),0),"")) -> 
K43: TRUE | P43: 0 | Q43: 0 | R43: 0 | AB43: 00:00:00 | AC43: 0 | AD43: 0 | AE43: 0 | AF43: 0 | AI43: 37 | AL43: 0 | AM43: =IF(torlesztes="Egyedi",-SUMIFS(V$7:V$126,U$7:U$126,">"&AK42,U$7:U$126,"<="&AK43),IFERROR(IF(torlesztes="Egyenlő tőke",IF(COUNT($AL$7:AL43)>$D$15,"",-$AL$5/$D$15),0),"")) ->  | AO43: 0 | AP43: =IF(torlesztes="Egyedi",-SUMIFS(V$7:V$126,U$7:U$126,">"&AK42,U$7:U$126,"<="&AK43),IFERROR(IF(torlesztes="Egyenlő tőke",IF(COUNT($AO$7:AO43)>$D$15,"",-$AL$5/$D$15),0),"")) -> 
K44: TRUE | P44: 0 | Q44: 0 | R44: 0 | AB44: 00:00:00 | AC44: 0 | AD44: 0 | AE44: 0 | AF44: 0 | AI44: 38 | AL44: 0 | AM44: =IF(torlesztes="Egyedi",-SUMIFS(V$7:V$126,U$7:U$126,">"&AK43,U$7:U$126,"<="&AK44),IFERROR(IF(torlesztes="Egyenlő tőke",IF(COUNT($AL$7:AL44)>$D$15,"",-$AL$5/$D$15),0),"")) ->  | AO44: 0 | AP44: =IF(torlesztes="Egyedi",-SUMIFS(V$7:V$126,U$7:U$126,">"&AK43,U$7:U$126,"<="&AK44),IFERROR(IF(torlesztes="Egyenlő tőke",IF(COUNT($AO$7:AO44)>$D$15,"",-$AL$5/$D$15),0),"")) -> 
K45: TRUE | P45: =IF(ISBLANK(M44),0,N44+P44) -> 0 | Q45: 0 | R45: 0 | AB45: 00:00:00 | AC45: 0 | AD45: 0 | AE45: 0 | AF45: 0 | AI45: 39 | AL45: 0 | AM45: =IF(torlesztes="Egyedi",-SUMIFS(V$7:V$126,U$7:U$126,">"&AK44,U$7:U$126,"<="&AK45),IFERROR(IF(torlesztes="Egyenlő tőke",IF(COUNT($AL$7:AL45)>$D$15,"",-$AL$5/$D$15),0),"")) ->  | AO45: 0 | AP45: =IF(torlesztes="Egyedi",-SUMIFS(V$7:V$126,U$7:U$126,">"&AK44,U$7:U$126,"<="&AK45),IFERROR(IF(torlesztes="Egyenlő tőke",IF(COUNT($AO$7:AO45)>$D$15,"",-$AL$5/$D$15),0),"")) -> 
K46: TRUE | P46: 0 | Q46: 0 | R46: 0 | AB46: 00:00:00 | AC46: 0 | AD46: 0 | AE46: 0 | AF46: 0 | AI46: 40 | AL46: 0 | AM46: =IF(torlesztes="Egyedi",-SUMIFS(V$7:V$126,U$7:U$126,">"&AK45,U$7:U$126,"<="&AK46),IFERROR(IF(torlesztes="Egyenlő tőke",IF(COUNT($AL$7:AL46)>$D$15,"",-$AL$5/$D$15),0),"")) ->  | AO46: 0 | AP46: =IF(torlesztes="Egyedi",-SUMIFS(V$7:V$126,U$7:U$126,">"&AK45,U$7:U$126,"<="&AK46),IFERROR(IF(torlesztes="Egyenlő tőke",IF(COUNT($AO$7:AO46)>$D$15,"",-$AL$5/$D$15),0),"")) -> 
K47: TRUE | P47: =IF(ISBLANK(M46),0,N46+P46) -> 0 | Q47: 0 | R47: 0 | AB47: 00:00:00 | AC47: 0 | AD47: 0 | AE47: 0 | AF47: 0 | AI47: 41 | AJ47: =IF(COUNT(AK47)=1,AJ46+1,"") ->  | AL47: 0 | AM47: =IF(torlesztes="Egyedi",-SUMIFS(V$7:V$126,U$7:U$126,">"&AK46,U$7:U$126,"<="&AK47),IFERROR(IF(torlesztes="Egyenlő tőke",IF(COUNT($AL$7:AL47)>$D$15,"",-$AL$5/$D$15),0),"")) ->  | AO47: 0 | AP47: =IF(torlesztes="Egyedi",-SUMIFS(V$7:V$126,U$7:U$126,">"&AK46,U$7:U$126,"<="&AK47),IFERROR(IF(torlesztes="Egyenlő tőke",IF(COUNT($AO$7:AO47)>$D$15,"",-$AL$5/$D$15),0),"")) -> 
K48: TRUE | P48: 0 | Q48: 0 | R48: 0 | AB48: 00:00:00 | AC48: 0 | AD48: 0 | AE48: 0 | AF48: 0 | AI48: 42 | AL48: 0 | AM48: =IF(torlesztes="Egyedi",-SUMIFS(V$7:V$126,U$7:U$126,">"&AK47,U$7:U$126,"<="&AK48),IFERROR(IF(torlesztes="Egyenlő tőke",IF(COUNT($AL$7:AL48)>$D$15,"",-$AL$5/$D$15),0),"")) ->  | AO48: 0 | AP48: =IF(torlesztes="Egyedi",-SUMIFS(V$7:V$126,U$7:U$126,">"&AK47,U$7:U$126,"<="&AK48),IFERROR(IF(torlesztes="Egyenlő tőke",IF(COUNT($AO$7:AO48)>$D$15,"",-$AL$5/$D$15),0),"")) -> 
K49: TRUE | P49: 0 | Q49: 0 | R49: 0 | AB49: 00:00:00 | AC49: 0 | AD49: 0 | AE49: 0 | AF49: 0 | AI49: 43 | AL49: 0 | AM49: =IF(torlesztes="Egyedi",-SUMIFS(V$7:V$126,U$7:U$126,">"&AK48,U$7:U$126,"<="&AK49),IFERROR(IF(torlesztes="Egyenlő tőke",IF(COUNT($AL$7:AL49)>$D$15,"",-$AL$5/$D$15),0),"")) ->  | AO49: 0 | AP49: =IF(torlesztes="Egyedi",-SUMIFS(V$7:V$126,U$7:U$126,">"&AK48,U$7:U$126,"<="&AK49),IFERROR(IF(torlesztes="Egyenlő tőke",IF(COUNT($AO$7:AO49)>$D$15,"",-$AL$5/$D$15),0),"")) -> 
K50: TRUE | P50: 0 | Q50: 0 | R50: 0 | AB50: 00:00:00 | AC50: 0 | AD50: 0 | AE50: 0 | AF50: 0 | AI50: 44 | AL50: 0 | AM50: =IF(torlesztes="Egyedi",-SUMIFS(V$7:V$126,U$7:U$126,">"&AK49,U$7:U$126,"<="&AK50),IFERROR(IF(torlesztes="Egyenlő tőke",IF(COUNT($AL$7:AL50)>$D$15,"",-$AL$5/$D$15),0),"")) ->  | AO50: 0 | AP50: =IF(torlesztes="Egyedi",-SUMIFS(V$7:V$126,U$7:U$126,">"&AK49,U$7:U$126,"<="&AK50),IFERROR(IF(torlesztes="Egyenlő tőke",IF(COUNT($AO$7:AO50)>$D$15,"",-$AL$5/$D$15),0),"")) -> 
K51: TRUE | P51: 0 | Q51: 0 | R51: 0 | AB51: 00:00:00 | AC51: 0 | AD51: 0 | AE51: 0 | AF51: 0 | AI51: 45 | AL51: 0 | AM51: =IF(torlesztes="Egyedi",-SUMIFS(V$7:V$126,U$7:U$126,">"&AK50,U$7:U$126,"<="&AK51),IFERROR(IF(torlesztes="Egyenlő tőke",IF(COUNT($AL$7:AL51)>$D$15,"",-$AL$5/$D$15),0),"")) ->  | AO51: 0 | AP51: =IF(torlesztes="Egyedi",-SUMIFS(V$7:V$126,U$7:U$126,">"&AK50,U$7:U$126,"<="&AK51),IFERROR(IF(torlesztes="Egyenlő tőke",IF(COUNT($AO$7:AO51)>$D$15,"",-$AL$5/$D$15),0),"")) -> 
K52: TRUE | P52: 0 | Q52: 0 | R52: 0 | AB52: 00:00:00 | AC52: 0 | AD52: 0 | AE52: 0 | AF52: 0 | AI52: 46 | AL52: 0 | AM52: =IF(torlesztes="Egyedi",-SUMIFS(V$7:V$126,U$7:U$126,">"&AK51,U$7:U$126,"<="&AK52),IFERROR(IF(torlesztes="Egyenlő tőke",IF(COUNT($AL$7:AL52)>$D$15,"",-$AL$5/$D$15),0),"")) ->  | AO52: 0 | AP52: =IF(torlesztes="Egyedi",-SUMIFS(V$7:V$126,U$7:U$126,">"&AK51,U$7:U$126,"<="&AK52),IFERROR(IF(torlesztes="Egyenlő tőke",IF(COUNT($AO$7:AO52)>$D$15,"",-$AL$5/$D$15),0),"")) -> 
K53: TRUE | P53: 0 | Q53: 0 | R53: 0 | AB53: 00:00:00 | AC53: 0 | AD53: 0 | AE53: 0 | AF53: 0 | AI53: 47 | AL53: 0 | AM53: =IF(torlesztes="Egyedi",-SUMIFS(V$7:V$126,U$7:U$126,">"&AK52,U$7:U$126,"<="&AK53),IFERROR(IF(torlesztes="Egyenlő tőke",IF(COUNT($AL$7:AL53)>$D$15,"",-$AL$5/$D$15),0),"")) ->  | AO53: 0 | AP53: =IF(torlesztes="Egyedi",-SUMIFS(V$7:V$126,U$7:U$126,">"&AK52,U$7:U$126,"<="&AK53),IFERROR(IF(torlesztes="Egyenlő tőke",IF(COUNT($AO$7:AO53)>$D$15,"",-$AL$5/$D$15),0),"")) -> 
K54: TRUE | P54: 0 | Q54: 0 | R54: 0 | AB54: 00:00:00 | AC54: 0 | AD54: 0 | AE54: 0 | AF54: 0 | AI54: 48 | AL54: 0 | AM54: =IF(torlesztes="Egyedi",-SUMIFS(V$7:V$126,U$7:U$126,">"&AK53,U$7:U$126,"<="&AK54),IFERROR(IF(torlesztes="Egyenlő tőke",IF(COUNT($AL$7:AL54)>$D$15,"",-$AL$5/$D$15),0),"")) ->  | AO54: 0 | AP54: =IF(torlesztes="Egyedi",-SUMIFS(V$7:V$126,U$7:U$126,">"&AK53,U$7:U$126,"<="&AK54),IFERROR(IF(torlesztes="Egyenlő tőke",IF(COUNT($AO$7:AO54)>$D$15,"",-$AL$5/$D$15),0),"")) -> 
K55: TRUE | P55: 0 | Q55: 0 | R55: 0 | AB55: 00:00:00 | AC55: 0 | AD55: 0 | AE55: 0 | AF55: 0 | AI55: 49 | AL55: 0 | AM55: =IF(torlesztes="Egyedi",-SUMIFS(V$7:V$126,U$7:U$126,">"&AK54,U$7:U$126,"<="&AK55),IFERROR(IF(torlesztes="Egyenlő tőke",IF(COUNT($AL$7:AL55)>$D$15,"",-$AL$5/$D$15),0),"")) ->  | AO55: 0 | AP55: =IF(torlesztes="Egyedi",-SUMIFS(V$7:V$126,U$7:U$126,">"&AK54,U$7:U$126,"<="&AK55),IFERROR(IF(torlesztes="Egyenlő tőke",IF(COUNT($AO$7:AO55)>$D$15,"",-$AL$5/$D$15),0),"")) -> 
K56: TRUE | P56: 0 | Q56: 0 | R56: 0 | AB56: 00:00:00 | AC56: 0 | AD56: 0 | AE56: 0 | AF56: 0 | AI56: 50 | AL56: 0 | AM56: =IF(torlesztes="Egyedi",-SUMIFS(V$7:V$126,U$7:U$126,">"&AK55,U$7:U$126,"<="&AK56),IFERROR(IF(torlesztes="Egyenlő tőke",IF(COUNT($AL$7:AL56)>$D$15,"",-$AL$5/$D$15),0),"")) ->  | AO56: 0 | AP56: =IF(torlesztes="Egyedi",-SUMIFS(V$7:V$126,U$7:U$126,">"&AK55,U$7:U$126,"<="&AK56),IFERROR(IF(torlesztes="Egyenlő tőke",IF(COUNT($AO$7:AO56)>$D$15,"",-$AL$5/$D$15),0),"")) -> 
K57: TRUE | P57: 0 | Q57: 0 | R57: 0 | AB57: 00:00:00 | AC57: 0 | AD57: 0 | AE57: 0 | AF57: 0 | AI57: 51 | AL57: 0 | AM57: =IF(torlesztes="Egyedi",-SUMIFS(V$7:V$126,U$7:U$126,">"&AK56,U$7:U$126,"<="&AK57),IFERROR(IF(torlesztes="Egyenlő tőke",IF(COUNT($AL$7:AL57)>$D$15,"",-$AL$5/$D$15),0),"")) ->  | AO57: 0 | AP57: =IF(torlesztes="Egyedi",-SUMIFS(V$7:V$126,U$7:U$126,">"&AK56,U$7:U$126,"<="&AK57),IFERROR(IF(torlesztes="Egyenlő tőke",IF(COUNT($AO$7:AO57)>$D$15,"",-$AL$5/$D$15),0),"")) -> 
K58: TRUE | P58: 0 | Q58: 0 | R58: 0 | AB58: 00:00:00 | AC58: 0 | AD58: 0 | AE58: 0 | AF58: 0 | AI58: 52 | AL58: 0 | AM58: =IF(torlesztes="Egyedi",-SUMIFS(V$7:V$126,U$7:U$126,">"&AK57,U$7:U$126,"<="&AK58),IFERROR(IF(torlesztes="Egyenlő tőke",IF(COUNT($AL$7:AL58)>$D$15,"",-$AL$5/$D$15),0),"")) ->  | AO58: 0 | AP58: =IF(torlesztes="Egyedi",-SUMIFS(V$7:V$126,U$7:U$126,">"&AK57,U$7:U$126,"<="&AK58),IFERROR(IF(torlesztes="Egyenlő tőke",IF(COUNT($AO$7:AO58)>$D$15,"",-$AL$5/$D$15),0),"")) -> 
K59: TRUE | P59: 0 | Q59: 0 | R59: 0 | AB59: 00:00:00 | AC59: 0 | AD59: 0 | AE59: 0 | AF59: 0 | AI59: 53 | AL59: 0 | AM59: =IF(torlesztes="Egyedi",-SUMIFS(V$7:V$126,U$7:U$126,">"&AK58,U$7:U$126,"<="&AK59),IFERROR(IF(torlesztes="Egyenlő tőke",IF(COUNT($AL$7:AL59)>$D$15,"",-$AL$5/$D$15),0),"")) ->  | AO59: 0 | AP59: =IF(torlesztes="Egyedi",-SUMIFS(V$7:V$126,U$7:U$126,">"&AK58,U$7:U$126,"<="&AK59),IFERROR(IF(torlesztes="Egyenlő tőke",IF(COUNT($AO$7:AO59)>$D$15,"",-$AL$5/$D$15),0),"")) -> 
K60: TRUE | P60: 0 | Q60: 0 | R60: 0 | AB60: 00:00:00 | AC60: 0 | AD60: 0 | AE60: 0 | AF60: 0 | AI60: 54 | AL60: 0 | AM60: =IF(torlesztes="Egyedi",-SUMIFS(V$7:V$126,U$7:U$126,">"&AK59,U$7:U$126,"<="&AK60),IFERROR(IF(torlesztes="Egyenlő tőke",IF(COUNT($AL$7:AL60)>$D$15,"",-$AL$5/$D$15),0),"")) ->  | AO60: 0 | AP60: =IF(torlesztes="Egyedi",-SUMIFS(V$7:V$126,U$7:U$126,">"&AK59,U$7:U$126,"<="&AK60),IFERROR(IF(torlesztes="Egyenlő tőke",IF(COUNT($AO$7:AO60)>$D$15,"",-$AL$5/$D$15),0),"")) -> 
K61: TRUE | P61: 0 | Q61: 0 | R61: 0 | AB61: 00:00:00 | AC61: 0 | AD61: 0 | AE61: 0 | AF61: 0 | AI61: 55 | AL61: 0 | AM61: =IF(torlesztes="Egyedi",-SUMIFS(V$7:V$126,U$7:U$126,">"&AK60,U$7:U$126,"<="&AK61),IFERROR(IF(torlesztes="Egyenlő tőke",IF(COUNT($AL$7:AL61)>$D$15,"",-$AL$5/$D$15),0),"")) ->  | AO61: 0 | AP61: =IF(torlesztes="Egyedi",-SUMIFS(V$7:V$126,U$7:U$126,">"&AK60,U$7:U$126,"<="&AK61),IFERROR(IF(torlesztes="Egyenlő tőke",IF(COUNT($AO$7:AO61)>$D$15,"",-$AL$5/$D$15),0),"")) -> 
K62: TRUE | P62: 0 | Q62: 0 | R62: 0 | AB62: 00:00:00 | AC62: 0 | AD62: 0 | AE62: 0 | AF62: 0 | AI62: 56 | AL62: 0 | AM62: =IF(torlesztes="Egyedi",-SUMIFS(V$7:V$126,U$7:U$126,">"&AK61,U$7:U$126,"<="&AK62),IFERROR(IF(torlesztes="Egyenlő tőke",IF(COUNT($AL$7:AL62)>$D$15,"",-$AL$5/$D$15),0),"")) ->  | AO62: 0 | AP62: =IF(torlesztes="Egyedi",-SUMIFS(V$7:V$126,U$7:U$126,">"&AK61,U$7:U$126,"<="&AK62),IFERROR(IF(torlesztes="Egyenlő tőke",IF(COUNT($AO$7:AO62)>$D$15,"",-$AL$5/$D$15),0),"")) -> 
K63: TRUE | P63: 0 | Q63: 0 | R63: 0 | AB63: 00:00:00 | AC63: 0 | AD63: 0 | AE63: 0 | AF63: 0 | AI63: 57 | AL63: 0 | AM63: =IF(torlesztes="Egyedi",-SUMIFS(V$7:V$126,U$7:U$126,">"&AK62,U$7:U$126,"<="&AK63),IFERROR(IF(torlesztes="Egyenlő tőke",IF(COUNT($AL$7:AL63)>$D$15,"",-$AL$5/$D$15),0),"")) ->  | AO63: 0 | AP63: =IF(torlesztes="Egyedi",-SUMIFS(V$7:V$126,U$7:U$126,">"&AK62,U$7:U$126,"<="&AK63),IFERROR(IF(torlesztes="Egyenlő tőke",IF(COUNT($AO$7:AO63)>$D$15,"",-$AL$5/$D$15),0),"")) -> 
K64: TRUE | P64: 0 | Q64: 0 | R64: 0 | AB64: 00:00:00 | AC64: 0 | AD64: 0 | AE64: 0 | AF64: 0 | AI64: 58 | AL64: 0 | AM64: =IF(torlesztes="Egyedi",-SUMIFS(V$7:V$126,U$7:U$126,">"&AK63,U$7:U$126,"<="&AK64),IFERROR(IF(torlesztes="Egyenlő tőke",IF(COUNT($AL$7:AL64)>$D$15,"",-$AL$5/$D$15),0),"")) ->  | AO64: 0 | AP64: =IF(torlesztes="Egyedi",-SUMIFS(V$7:V$126,U$7:U$126,">"&AK63,U$7:U$126,"<="&AK64),IFERROR(IF(torlesztes="Egyenlő tőke",IF(COUNT($AO$7:AO64)>$D$15,"",-$AL$5/$D$15),0),"")) -> 
K65: TRUE | P65: 0 | Q65: 0 | R65: 0 | AB65: 00:00:00 | AC65: 0 | AD65: 0 | AE65: 0 | AF65: 0 | AI65: 59 | AL65: 0 | AM65: =IF(torlesztes="Egyedi",-SUMIFS(V$7:V$126,U$7:U$126,">"&AK64,U$7:U$126,"<="&AK65),IFERROR(IF(torlesztes="Egyenlő tőke",IF(COUNT($AL$7:AL65)>$D$15,"",-$AL$5/$D$15),0),"")) ->  | AO65: 0 | AP65: =IF(torlesztes="Egyedi",-SUMIFS(V$7:V$126,U$7:U$126,">"&AK64,U$7:U$126,"<="&AK65),IFERROR(IF(torlesztes="Egyenlő tőke",IF(COUNT($AO$7:AO65)>$D$15,"",-$AL$5/$D$15),0),"")) -> 
K66: TRUE | P66: 0 | Q66: 0 | R66: 0 | AB66: 00:00:00 | AC66: 0 | AD66: 0 | AE66: 0 | AF66: 0 | AI66: 60 | AL66: 0 | AM66: =IF(torlesztes="Egyedi",-SUMIFS(V$7:V$126,U$7:U$126,">"&AK65,U$7:U$126,"<="&AK66),IFERROR(IF(torlesztes="Egyenlő tőke",IF(COUNT($AL$7:AL66)>$D$15,"",-$AL$5/$D$15),0),"")) ->  | AO66: 0 | AP66: =IF(torlesztes="Egyedi",-SUMIFS(V$7:V$126,U$7:U$126,">"&AK65,U$7:U$126,"<="&AK66),IFERROR(IF(torlesztes="Egyenlő tőke",IF(COUNT($AO$7:AO66)>$D$15,"",-$AL$5/$D$15),0),"")) -> 
K67: TRUE | P67: 0 | Q67: 0 | R67: 0 | AB67: 00:00:00 | AC67: 0 | AD67: 0 | AE67: 0 | AF67: 0 | AI67: 61 | AL67: 0 | AM67: =IF(torlesztes="Egyedi",-SUMIFS(V$7:V$126,U$7:U$126,">"&AK66,U$7:U$126,"<="&AK67),IFERROR(IF(torlesztes="Egyenlő tőke",IF(COUNT($AL$7:AL67)>$D$15,"",-$AL$5/$D$15),0),"")) ->  | AO67: 0 | AP67: =IF(torlesztes="Egyedi",-SUMIFS(V$7:V$126,U$7:U$126,">"&AK66,U$7:U$126,"<="&AK67),IFERROR(IF(torlesztes="Egyenlő tőke",IF(COUNT($AO$7:AO67)>$D$15,"",-$AL$5/$D$15),0),"")) -> 
K68: TRUE | P68: 0 | Q68: 0 | R68: 0 | AB68: 00:00:00 | AC68: 0 | AD68: 0 | AE68: 0 | AF68: 0 | AI68: 62 | AL68: 0 | AM68: =IF(torlesztes="Egyedi",-SUMIFS(V$7:V$126,U$7:U$126,">"&AK67,U$7:U$126,"<="&AK68),IFERROR(IF(torlesztes="Egyenlő tőke",IF(COUNT($AL$7:AL68)>$D$15,"",-$AL$5/$D$15),0),"")) ->  | AO68: 0 | AP68: =IF(torlesztes="Egyedi",-SUMIFS(V$7:V$126,U$7:U$126,">"&AK67,U$7:U$126,"<="&AK68),IFERROR(IF(torlesztes="Egyenlő tőke",IF(COUNT($AO$7:AO68)>$D$15,"",-$AL$5/$D$15),0),"")) -> 
K69: TRUE | P69: 0 | Q69: 0 | R69: 0 | AB69: 00:00:00 | AC69: 0 | AD69: 0 | AE69: 0 | AF69: 0 | AI69: 63 | AL69: 0 | AM69: =IF(torlesztes="Egyedi",-SUMIFS(V$7:V$126,U$7:U$126,">"&AK68,U$7:U$126,"<="&AK69),IFERROR(IF(torlesztes="Egyenlő tőke",IF(COUNT($AL$7:AL69)>$D$15,"",-$AL$5/$D$15),0),"")) ->  | AO69: 0 | AP69: =IF(torlesztes="Egyedi",-SUMIFS(V$7:V$126,U$7:U$126,">"&AK68,U$7:U$126,"<="&AK69),IFERROR(IF(torlesztes="Egyenlő tőke",IF(COUNT($AO$7:AO69)>$D$15,"",-$AL$5/$D$15),0),"")) -> 
K70: TRUE | P70: 0 | Q70: 0 | R70: 0 | AB70: 00:00:00 | AC70: 0 | AD70: 0 | AE70: 0 | AF70: 0 | AI70: 64 | AL70: 0 | AM70: =IF(torlesztes="Egyedi",-SUMIFS(V$7:V$126,U$7:U$126,">"&AK69,U$7:U$126,"<="&AK70),IFERROR(IF(torlesztes="Egyenlő tőke",IF(COUNT($AL$7:AL70)>$D$15,"",-$AL$5/$D$15),0),"")) ->  | AO70: 0 | AP70: =IF(torlesztes="Egyedi",-SUMIFS(V$7:V$126,U$7:U$126,">"&AK69,U$7:U$126,"<="&AK70),IFERROR(IF(torlesztes="Egyenlő tőke",IF(COUNT($AO$7:AO70)>$D$15,"",-$AL$5/$D$15),0),"")) -> 
K71: =AJ71>$D$15 -> TRUE | P71: 0 | Q71: =IF(AND(ISBLANK(M70),AI71<>1),0,IFERROR(-P71*minkamat23/365*(IF(ISBLANK(M71),$C$18,M71)-O71),"")) -> 0 | R71: =IF(AND(ISBLANK(M70),AI71<>1),0,IFERROR(-P71*tenylegeskamat/365*(IF(ISBLANK(M71),$C$18,M71)-O71),"")) -> 0 | S71: =IFERROR(IF(ISBLANK(M71),$C$18,M71)-O71,"") ->  | W71: =IF(ISNA(MAX(U70,INDEX(AK$6:AK$126,MATCH(U71-1,AK$6:AK$126,1)))),"",MAX(U70,INDEX(AK$6:AK$126,MATCH(U71-1,AK$6:AK$126,1)))) ->  | X71: =IF(ISNA(MIN(IF(OR(ISBLANK(X70),X70=""),INDEX(AL$7:AL$126,MATCH(U71,AK$7:AK$126,1)),X70-V70),INDEX(AL$7:AL$126,MATCH(U71,AK$7:AK$126,1)))),"",MIN(IF(OR(ISBLANK(X70),X70=""),INDEX(AL$7:AL$126,MATCH(U71,AK$7:AK$126,1)),X70-V70),INDEX(AL$7:AL$126,MATCH(U71,AK$7:AK$126,1)))) ->  | Y71: =IFERROR(-X71*minkamat23/365*(U71-W71),"") ->  | Z71: =IFERROR(-X71*tenylegeskamat/365*(U71-W71),"") ->  | AA71: =IFERROR(U71-W71,"") ->  | AB71: =MAX(AK70,IF(ISNA(INDEX(U$7:U$126,MATCH(AK71,U$7:U$126,1))),0,INDEX(U$7:U$126,MATCH(AK71,U$7:U$126,1)))) -> 00:00:00 | AC71: =IF(ISNA(INDEX(V$7:V$126,MATCH(AK71,U$7:U$126,1))),0,INDEX(V$7:V$126,MATCH(AK71,U$7:U$126,1))) -> 0 | AD71: =IF(ISNA(INDEX(X$7:X$126,MATCH(AK71,U$7:U$126,1))),AL71,INDEX(X$7:X$126,MATCH(AK71,U$7:U$126,1))) -> 0 | AE71: =IFERROR(-(AD71-AC71)*minkamat23/365*(AK71-AB71),0) -> 0 | AF71: =IFERROR(-(AD71-AC71)*tenylegeskamat/365*(AK71-AB71),0) -> 0 | AG71: =IFERROR(AK71-AB71,"") ->  | AI71: 65 | AL71: 0 | AM71: =IF(torlesztes="Egyedi",-SUMIFS(V$7:V$126,U$7:U$126,">"&AK70,U$7:U$126,"<="&AK71),IFERROR(IF(torlesztes="Egyenlő tőke",IF(COUNT($AL$7:AL71)>$D$15,"",-$AL$5/$D$15),0),"")) ->  | AO71: 0 | AP71: =IF(torlesztes="Egyedi",-SUMIFS(V$7:V$126,U$7:U$126,">"&AK70,U$7:U$126,"<="&AK71),IFERROR(IF(torlesztes="Egyenlő tőke",IF(COUNT($AO$7:AO71)>$D$15,"",-$AL$5/$D$15),0),"")) ->  | AT71: =IFERROR(AK71-AK70,"") -> 
K72: TRUE | P72: 0 | Q72: 0 | R72: 0 | AB72: 00:00:00 | AC72: 0 | AD72: 0 | AE72: 0 | AF72: 0 | AI72: 66 | AK72: =IF(OR(AK71=$C$19,AK71=""),"",IFERROR(IF(EDATE($C$18,(AI72-1)*12/$D$19)<=$C$19,EDATE($C$18,(AI72-1)*12/$D$19),$C$19),"")) ->  | AL72: =+IF(COUNT(AL71)<>0,SUM(AL71:AM71)*(1-K72),"") -> 0 | AM72: =IF(torlesztes="Egyedi",-SUMIFS(V$7:V$126,U$7:U$126,">"&AK71,U$7:U$126,"<="&AK72),IFERROR(IF(torlesztes="Egyenlő tőke",IF(COUNT($AL$7:AL72)>$D$15,"",-$AL$5/$D$15),0),"")) ->  | AN72: =IF(torlesztes="Egyedi",SUMIFS(Y$7:Y$126,U$7:U$126,">"&AK71,U$7:U$126,"<="&AK72)+AE72,IFERROR(-AL72*minkamat23/365*(AK72-AK71),"")) ->  | AO72: =+IF(COUNT(AO71)<>0,SUM(AO71:AP71)*(1-K72),"") -> 0 | AP72: =IF(torlesztes="Egyedi",-SUMIFS(V$7:V$126,U$7:U$126,">"&AK71,U$7:U$126,"<="&AK72),IFERROR(IF(torlesztes="Egyenlő tőke",IF(COUNT($AO$7:AO72)>$D$15,"",-$AL$5/$D$15),0),"")) ->  | AQ72: =IF(torlesztes="Egyedi",SUMIFS(Z$7:Z$126,U$7:U$126,">"&AK71,U$7:U$126,"<="&AK72)+AF72,IFERROR(-AO72*tenylegeskamat/365*(AK72-AK71),"")) ->  | AS72: =IFERROR(MAX((ABS(AN72)-ABS(AQ72)),0),"") -> 
K73: TRUE | O73: =IF(ISBLANK(M72),"",M72) ->  | P73: 0 | Q73: 0 | R73: 0 | AB73: 00:00:00 | AC73: 0 | AD73: 0 | AE73: 0 | AF73: 0 | AI73: 67 | AL73: 0 | AM73: =IF(torlesztes="Egyedi",-SUMIFS(V$7:V$126,U$7:U$126,">"&AK72,U$7:U$126,"<="&AK73),IFERROR(IF(torlesztes="Egyenlő tőke",IF(COUNT($AL$7:AL73)>$D$15,"",-$AL$5/$D$15),0),"")) ->  | AO73: 0 | AP73: =IF(torlesztes="Egyedi",-SUMIFS(V$7:V$126,U$7:U$126,">"&AK72,U$7:U$126,"<="&AK73),IFERROR(IF(torlesztes="Egyenlő tőke",IF(COUNT($AO$7:AO73)>$D$15,"",-$AL$5/$D$15),0),"")) -> 
K74: TRUE | P74: 0 | Q74: 0 | R74: 0 | AB74: 00:00:00 | AC74: 0 | AD74: 0 | AE74: 0 | AF74: 0 | AI74: 68 | AL74: 0 | AM74: =IF(torlesztes="Egyedi",-SUMIFS(V$7:V$126,U$7:U$126,">"&AK73,U$7:U$126,"<="&AK74),IFERROR(IF(torlesztes="Egyenlő tőke",IF(COUNT($AL$7:AL74)>$D$15,"",-$AL$5/$D$15),0),"")) ->  | AO74: 0 | AP74: =IF(torlesztes="Egyedi",-SUMIFS(V$7:V$126,U$7:U$126,">"&AK73,U$7:U$126,"<="&AK74),IFERROR(IF(torlesztes="Egyenlő tőke",IF(COUNT($AO$7:AO74)>$D$15,"",-$AL$5/$D$15),0),"")) -> 
K75: TRUE | P75: 0 | Q75: 0 | R75: 0 | AB75: 00:00:00 | AC75: 0 | AD75: 0 | AE75: 0 | AF75: 0 | AI75: 69 | AL75: 0 | AM75: =IF(torlesztes="Egyedi",-SUMIFS(V$7:V$126,U$7:U$126,">"&AK74,U$7:U$126,"<="&AK75),IFERROR(IF(torlesztes="Egyenlő tőke",IF(COUNT($AL$7:AL75)>$D$15,"",-$AL$5/$D$15),0),"")) ->  | AO75: 0 | AP75: =IF(torlesztes="Egyedi",-SUMIFS(V$7:V$126,U$7:U$126,">"&AK74,U$7:U$126,"<="&AK75),IFERROR(IF(torlesztes="Egyenlő tőke",IF(COUNT($AO$7:AO75)>$D$15,"",-$AL$5/$D$15),0),"")) -> 
K76: TRUE | P76: 0 | Q76: 0 | R76: 0 | AB76: 00:00:00 | AC76: 0 | AD76: 0 | AE76: 0 | AF76: 0 | AI76: 70 | AL76: 0 | AM76: =IF(torlesztes="Egyedi",-SUMIFS(V$7:V$126,U$7:U$126,">"&AK75,U$7:U$126,"<="&AK76),IFERROR(IF(torlesztes="Egyenlő tőke",IF(COUNT($AL$7:AL76)>$D$15,"",-$AL$5/$D$15),0),"")) ->  | AO76: 0 | AP76: =IF(torlesztes="Egyedi",-SUMIFS(V$7:V$126,U$7:U$126,">"&AK75,U$7:U$126,"<="&AK76),IFERROR(IF(torlesztes="Egyenlő tőke",IF(COUNT($AO$7:AO76)>$D$15,"",-$AL$5/$D$15),0),"")) -> 
K77: TRUE | P77: 0 | Q77: 0 | R77: 0 | AB77: 00:00:00 | AC77: 0 | AD77: 0 | AE77: 0 | AF77: 0 | AI77: 71 | AL77: 0 | AM77: =IF(torlesztes="Egyedi",-SUMIFS(V$7:V$126,U$7:U$126,">"&AK76,U$7:U$126,"<="&AK77),IFERROR(IF(torlesztes="Egyenlő tőke",IF(COUNT($AL$7:AL77)>$D$15,"",-$AL$5/$D$15),0),"")) ->  | AO77: 0 | AP77: =IF(torlesztes="Egyedi",-SUMIFS(V$7:V$126,U$7:U$126,">"&AK76,U$7:U$126,"<="&AK77),IFERROR(IF(torlesztes="Egyenlő tőke",IF(COUNT($AO$7:AO77)>$D$15,"",-$AL$5/$D$15),0),"")) -> 
K78: TRUE | P78: 0 | Q78: 0 | R78: 0 | AB78: 00:00:00 | AC78: 0 | AD78: 0 | AE78: 0 | AF78: 0 | AI78: 72 | AL78: 0 | AM78: =IF(torlesztes="Egyedi",-SUMIFS(V$7:V$126,U$7:U$126,">"&AK77,U$7:U$126,"<="&AK78),IFERROR(IF(torlesztes="Egyenlő tőke",IF(COUNT($AL$7:AL78)>$D$15,"",-$AL$5/$D$15),0),"")) ->  | AO78: 0 | AP78: =IF(torlesztes="Egyedi",-SUMIFS(V$7:V$126,U$7:U$126,">"&AK77,U$7:U$126,"<="&AK78),IFERROR(IF(torlesztes="Egyenlő tőke",IF(COUNT($AO$7:AO78)>$D$15,"",-$AL$5/$D$15),0),"")) -> 
K79: TRUE | P79: 0 | Q79: 0 | R79: 0 | AB79: 00:00:00 | AC79: 0 | AD79: 0 | AE79: 0 | AF79: 0 | AI79: 73 | AL79: 0 | AM79: =IF(torlesztes="Egyedi",-SUMIFS(V$7:V$126,U$7:U$126,">"&AK78,U$7:U$126,"<="&AK79),IFERROR(IF(torlesztes="Egyenlő tőke",IF(COUNT($AL$7:AL79)>$D$15,"",-$AL$5/$D$15),0),"")) ->  | AO79: 0 | AP79: =IF(torlesztes="Egyedi",-SUMIFS(V$7:V$126,U$7:U$126,">"&AK78,U$7:U$126,"<="&AK79),IFERROR(IF(torlesztes="Egyenlő tőke",IF(COUNT($AO$7:AO79)>$D$15,"",-$AL$5/$D$15),0),"")) -> 
K80: TRUE | P80: 0 | Q80: 0 | R80: 0 | AB80: 00:00:00 | AC80: 0 | AD80: 0 | AE80: 0 | AF80: 0 | AI80: 74 | AL80: 0 | AM80: =IF(torlesztes="Egyedi",-SUMIFS(V$7:V$126,U$7:U$126,">"&AK79,U$7:U$126,"<="&AK80),IFERROR(IF(torlesztes="Egyenlő tőke",IF(COUNT($AL$7:AL80)>$D$15,"",-$AL$5/$D$15),0),"")) ->  | AO80: 0 | AP80: =IF(torlesztes="Egyedi",-SUMIFS(V$7:V$126,U$7:U$126,">"&AK79,U$7:U$126,"<="&AK80),IFERROR(IF(torlesztes="Egyenlő tőke",IF(COUNT($AO$7:AO80)>$D$15,"",-$AL$5/$D$15),0),"")) -> 
K81: TRUE | P81: 0 | Q81: 0 | R81: 0 | AB81: 00:00:00 | AC81: 0 | AD81: 0 | AE81: 0 | AF81: 0 | AI81: 75 | AL81: 0 | AM81: =IF(torlesztes="Egyedi",-SUMIFS(V$7:V$126,U$7:U$126,">"&AK80,U$7:U$126,"<="&AK81),IFERROR(IF(torlesztes="Egyenlő tőke",IF(COUNT($AL$7:AL81)>$D$15,"",-$AL$5/$D$15),0),"")) ->  | AO81: 0 | AP81: =IF(torlesztes="Egyedi",-SUMIFS(V$7:V$126,U$7:U$126,">"&AK80,U$7:U$126,"<="&AK81),IFERROR(IF(torlesztes="Egyenlő tőke",IF(COUNT($AO$7:AO81)>$D$15,"",-$AL$5/$D$15),0),"")) -> 
K82: TRUE | P82: 0 | Q82: 0 | R82: 0 | AB82: 00:00:00 | AC82: 0 | AD82: 0 | AE82: 0 | AF82: 0 | AI82: 76 | AL82: 0 | AM82: =IF(torlesztes="Egyedi",-SUMIFS(V$7:V$126,U$7:U$126,">"&AK81,U$7:U$126,"<="&AK82),IFERROR(IF(torlesztes="Egyenlő tőke",IF(COUNT($AL$7:AL82)>$D$15,"",-$AL$5/$D$15),0),"")) ->  | AO82: 0 | AP82: =IF(torlesztes="Egyedi",-SUMIFS(V$7:V$126,U$7:U$126,">"&AK81,U$7:U$126,"<="&AK82),IFERROR(IF(torlesztes="Egyenlő tőke",IF(COUNT($AO$7:AO82)>$D$15,"",-$AL$5/$D$15),0),"")) -> 
K83: TRUE | P83: 0 | Q83: 0 | R83: 0 | AB83: 00:00:00 | AC83: 0 | AD83: 0 | AE83: 0 | AF83: 0 | AI83: 77 | AL83: 0 | AM83: =IF(torlesztes="Egyedi",-SUMIFS(V$7:V$126,U$7:U$126,">"&AK82,U$7:U$126,"<="&AK83),IFERROR(IF(torlesztes="Egyenlő tőke",IF(COUNT($AL$7:AL83)>$D$15,"",-$AL$5/$D$15),0),"")) ->  | AO83: 0 | AP83: =IF(torlesztes="Egyedi",-SUMIFS(V$7:V$126,U$7:U$126,">"&AK82,U$7:U$126,"<="&AK83),IFERROR(IF(torlesztes="Egyenlő tőke",IF(COUNT($AO$7:AO83)>$D$15,"",-$AL$5/$D$15),0),"")) -> 
K84: TRUE | P84: 0 | Q84: 0 | R84: 0 | AB84: 00:00:00 | AC84: 0 | AD84: 0 | AE84: 0 | AF84: 0 | AI84: 78 | AL84: 0 | AM84: =IF(torlesztes="Egyedi",-SUMIFS(V$7:V$126,U$7:U$126,">"&AK83,U$7:U$126,"<="&AK84),IFERROR(IF(torlesztes="Egyenlő tőke",IF(COUNT($AL$7:AL84)>$D$15,"",-$AL$5/$D$15),0),"")) ->  | AO84: 0 | AP84: =IF(torlesztes="Egyedi",-SUMIFS(V$7:V$126,U$7:U$126,">"&AK83,U$7:U$126,"<="&AK84),IFERROR(IF(torlesztes="Egyenlő tőke",IF(COUNT($AO$7:AO84)>$D$15,"",-$AL$5/$D$15),0),"")) -> 
K85: TRUE | P85: 0 | Q85: 0 | R85: 0 | AB85: 00:00:00 | AC85: 0 | AD85: 0 | AE85: 0 | AF85: 0 | AI85: 79 | AL85: 0 | AM85: =IF(torlesztes="Egyedi",-SUMIFS(V$7:V$126,U$7:U$126,">"&AK84,U$7:U$126,"<="&AK85),IFERROR(IF(torlesztes="Egyenlő tőke",IF(COUNT($AL$7:AL85)>$D$15,"",-$AL$5/$D$15),0),"")) ->  | AO85: 0 | AP85: =IF(torlesztes="Egyedi",-SUMIFS(V$7:V$126,U$7:U$126,">"&AK84,U$7:U$126,"<="&AK85),IFERROR(IF(torlesztes="Egyenlő tőke",IF(COUNT($AO$7:AO85)>$D$15,"",-$AL$5/$D$15),0),"")) -> 
K86: TRUE | P86: 0 | Q86: 0 | R86: 0 | AB86: 00:00:00 | AC86: 0 | AD86: 0 | AE86: 0 | AF86: 0 | AI86: 80 | AL86: 0 | AM86: =IF(torlesztes="Egyedi",-SUMIFS(V$7:V$126,U$7:U$126,">"&AK85,U$7:U$126,"<="&AK86),IFERROR(IF(torlesztes="Egyenlő tőke",IF(COUNT($AL$7:AL86)>$D$15,"",-$AL$5/$D$15),0),"")) ->  | AO86: 0 | AP86: =IF(torlesztes="Egyedi",-SUMIFS(V$7:V$126,U$7:U$126,">"&AK85,U$7:U$126,"<="&AK86),IFERROR(IF(torlesztes="Egyenlő tőke",IF(COUNT($AO$7:AO86)>$D$15,"",-$AL$5/$D$15),0),"")) -> 
K87: TRUE | P87: 0 | Q87: 0 | R87: 0 | AB87: 00:00:00 | AC87: 0 | AD87: 0 | AE87: 0 | AF87: 0 | AI87: 81 | AL87: 0 | AM87: =IF(torlesztes="Egyedi",-SUMIFS(V$7:V$126,U$7:U$126,">"&AK86,U$7:U$126,"<="&AK87),IFERROR(IF(torlesztes="Egyenlő tőke",IF(COUNT($AL$7:AL87)>$D$15,"",-$AL$5/$D$15),0),"")) ->  | AO87: 0 | AP87: =IF(torlesztes="Egyedi",-SUMIFS(V$7:V$126,U$7:U$126,">"&AK86,U$7:U$126,"<="&AK87),IFERROR(IF(torlesztes="Egyenlő tőke",IF(COUNT($AO$7:AO87)>$D$15,"",-$AL$5/$D$15),0),"")) -> 
K88: TRUE | P88: 0 | Q88: 0 | R88: 0 | AB88: 00:00:00 | AC88: 0 | AD88: 0 | AE88: 0 | AF88: 0 | AI88: 82 | AL88: 0 | AM88: =IF(torlesztes="Egyedi",-SUMIFS(V$7:V$126,U$7:U$126,">"&AK87,U$7:U$126,"<="&AK88),IFERROR(IF(torlesztes="Egyenlő tőke",IF(COUNT($AL$7:AL88)>$D$15,"",-$AL$5/$D$15),0),"")) ->  | AO88: 0 | AP88: =IF(torlesztes="Egyedi",-SUMIFS(V$7:V$126,U$7:U$126,">"&AK87,U$7:U$126,"<="&AK88),IFERROR(IF(torlesztes="Egyenlő tőke",IF(COUNT($AO$7:AO88)>$D$15,"",-$AL$5/$D$15),0),"")) -> 
K89: TRUE | P89: 0 | Q89: 0 | R89: 0 | AB89: 00:00:00 | AC89: 0 | AD89: 0 | AE89: 0 | AF89: 0 | AI89: 83 | AL89: 0 | AM89: =IF(torlesztes="Egyedi",-SUMIFS(V$7:V$126,U$7:U$126,">"&AK88,U$7:U$126,"<="&AK89),IFERROR(IF(torlesztes="Egyenlő tőke",IF(COUNT($AL$7:AL89)>$D$15,"",-$AL$5/$D$15),0),"")) ->  | AO89: 0 | AP89: =IF(torlesztes="Egyedi",-SUMIFS(V$7:V$126,U$7:U$126,">"&AK88,U$7:U$126,"<="&AK89),IFERROR(IF(torlesztes="Egyenlő tőke",IF(COUNT($AO$7:AO89)>$D$15,"",-$AL$5/$D$15),0),"")) -> 
K90: TRUE | P90: 0 | Q90: 0 | R90: 0 | AB90: 00:00:00 | AC90: 0 | AD90: 0 | AE90: 0 | AF90: 0 | AI90: 84 | AL90: 0 | AM90: =IF(torlesztes="Egyedi",-SUMIFS(V$7:V$126,U$7:U$126,">"&AK89,U$7:U$126,"<="&AK90),IFERROR(IF(torlesztes="Egyenlő tőke",IF(COUNT($AL$7:AL90)>$D$15,"",-$AL$5/$D$15),0),"")) ->  | AO90: 0 | AP90: =IF(torlesztes="Egyedi",-SUMIFS(V$7:V$126,U$7:U$126,">"&AK89,U$7:U$126,"<="&AK90),IFERROR(IF(torlesztes="Egyenlő tőke",IF(COUNT($AO$7:AO90)>$D$15,"",-$AL$5/$D$15),0),"")) -> 
K91: TRUE | P91: 0 | Q91: 0 | R91: 0 | AB91: 00:00:00 | AC91: 0 | AD91: 0 | AE91: 0 | AF91: 0 | AI91: 85 | AL91: 0 | AM91: =IF(torlesztes="Egyedi",-SUMIFS(V$7:V$126,U$7:U$126,">"&AK90,U$7:U$126,"<="&AK91),IFERROR(IF(torlesztes="Egyenlő tőke",IF(COUNT($AL$7:AL91)>$D$15,"",-$AL$5/$D$15),0),"")) ->  | AO91: 0 | AP91: =IF(torlesztes="Egyedi",-SUMIFS(V$7:V$126,U$7:U$126,">"&AK90,U$7:U$126,"<="&AK91),IFERROR(IF(torlesztes="Egyenlő tőke",IF(COUNT($AO$7:AO91)>$D$15,"",-$AL$5/$D$15),0),"")) -> 
K92: TRUE | P92: 0 | Q92: 0 | R92: 0 | AB92: 00:00:00 | AC92: 0 | AD92: 0 | AE92: 0 | AF92: 0 | AI92: 86 | AL92: 0 | AM92: =IF(torlesztes="Egyedi",-SUMIFS(V$7:V$126,U$7:U$126,">"&AK91,U$7:U$126,"<="&AK92),IFERROR(IF(torlesztes="Egyenlő tőke",IF(COUNT($AL$7:AL92)>$D$15,"",-$AL$5/$D$15),0),"")) ->  | AO92: 0 | AP92: =IF(torlesztes="Egyedi",-SUMIFS(V$7:V$126,U$7:U$126,">"&AK91,U$7:U$126,"<="&AK92),IFERROR(IF(torlesztes="Egyenlő tőke",IF(COUNT($AO$7:AO92)>$D$15,"",-$AL$5/$D$15),0),"")) -> 
K93: TRUE | P93: 0 | Q93: 0 | R93: 0 | AB93: 00:00:00 | AC93: 0 | AD93: 0 | AE93: 0 | AF93: 0 | AI93: 87 | AL93: 0 | AM93: =IF(torlesztes="Egyedi",-SUMIFS(V$7:V$126,U$7:U$126,">"&AK92,U$7:U$126,"<="&AK93),IFERROR(IF(torlesztes="Egyenlő tőke",IF(COUNT($AL$7:AL93)>$D$15,"",-$AL$5/$D$15),0),"")) ->  | AO93: 0 | AP93: =IF(torlesztes="Egyedi",-SUMIFS(V$7:V$126,U$7:U$126,">"&AK92,U$7:U$126,"<="&AK93),IFERROR(IF(torlesztes="Egyenlő tőke",IF(COUNT($AO$7:AO93)>$D$15,"",-$AL$5/$D$15),0),"")) -> 
K94: TRUE | P94: 0 | Q94: 0 | R94: 0 | AB94: 00:00:00 | AC94: 0 | AD94: 0 | AE94: 0 | AF94: 0 | AI94: 88 | AL94: 0 | AM94: =IF(torlesztes="Egyedi",-SUMIFS(V$7:V$126,U$7:U$126,">"&AK93,U$7:U$126,"<="&AK94),IFERROR(IF(torlesztes="Egyenlő tőke",IF(COUNT($AL$7:AL94)>$D$15,"",-$AL$5/$D$15),0),"")) ->  | AO94: 0 | AP94: =IF(torlesztes="Egyedi",-SUMIFS(V$7:V$126,U$7:U$126,">"&AK93,U$7:U$126,"<="&AK94),IFERROR(IF(torlesztes="Egyenlő tőke",IF(COUNT($AO$7:AO94)>$D$15,"",-$AL$5/$D$15),0),"")) -> 
K95: TRUE | P95: 0 | Q95: 0 | R95: 0 | AB95: 00:00:00 | AC95: 0 | AD95: 0 | AE95: 0 | AF95: 0 | AI95: 89 | AL95: 0 | AM95: =IF(torlesztes="Egyedi",-SUMIFS(V$7:V$126,U$7:U$126,">"&AK94,U$7:U$126,"<="&AK95),IFERROR(IF(torlesztes="Egyenlő tőke",IF(COUNT($AL$7:AL95)>$D$15,"",-$AL$5/$D$15),0),"")) ->  | AO95: 0 | AP95: =IF(torlesztes="Egyedi",-SUMIFS(V$7:V$126,U$7:U$126,">"&AK94,U$7:U$126,"<="&AK95),IFERROR(IF(torlesztes="Egyenlő tőke",IF(COUNT($AO$7:AO95)>$D$15,"",-$AL$5/$D$15),0),"")) -> 
K96: TRUE | P96: 0 | Q96: 0 | R96: 0 | AB96: 00:00:00 | AC96: 0 | AD96: 0 | AE96: 0 | AF96: 0 | AI96: 90 | AL96: 0 | AM96: =IF(torlesztes="Egyedi",-SUMIFS(V$7:V$126,U$7:U$126,">"&AK95,U$7:U$126,"<="&AK96),IFERROR(IF(torlesztes="Egyenlő tőke",IF(COUNT($AL$7:AL96)>$D$15,"",-$AL$5/$D$15),0),"")) ->  | AO96: 0 | AP96: =IF(torlesztes="Egyedi",-SUMIFS(V$7:V$126,U$7:U$126,">"&AK95,U$7:U$126,"<="&AK96),IFERROR(IF(torlesztes="Egyenlő tőke",IF(COUNT($AO$7:AO96)>$D$15,"",-$AL$5/$D$15),0),"")) -> 
K97: TRUE | P97: 0 | Q97: 0 | R97: 0 | AB97: 00:00:00 | AC97: 0 | AD97: 0 | AE97: 0 | AF97: 0 | AI97: 91 | AL97: 0 | AM97: =IF(torlesztes="Egyedi",-SUMIFS(V$7:V$126,U$7:U$126,">"&AK96,U$7:U$126,"<="&AK97),IFERROR(IF(torlesztes="Egyenlő tőke",IF(COUNT($AL$7:AL97)>$D$15,"",-$AL$5/$D$15),0),"")) ->  | AO97: 0 | AP97: =IF(torlesztes="Egyedi",-SUMIFS(V$7:V$126,U$7:U$126,">"&AK96,U$7:U$126,"<="&AK97),IFERROR(IF(torlesztes="Egyenlő tőke",IF(COUNT($AO$7:AO97)>$D$15,"",-$AL$5/$D$15),0),"")) -> 
K98: TRUE | P98: 0 | Q98: 0 | R98: 0 | AB98: 00:00:00 | AC98: 0 | AD98: 0 | AE98: 0 | AF98: 0 | AI98: 92 | AL98: 0 | AM98: =IF(torlesztes="Egyedi",-SUMIFS(V$7:V$126,U$7:U$126,">"&AK97,U$7:U$126,"<="&AK98),IFERROR(IF(torlesztes="Egyenlő tőke",IF(COUNT($AL$7:AL98)>$D$15,"",-$AL$5/$D$15),0),"")) ->  | AO98: 0 | AP98: =IF(torlesztes="Egyedi",-SUMIFS(V$7:V$126,U$7:U$126,">"&AK97,U$7:U$126,"<="&AK98),IFERROR(IF(torlesztes="Egyenlő tőke",IF(COUNT($AO$7:AO98)>$D$15,"",-$AL$5/$D$15),0),"")) -> 
K99: TRUE | P99: 0 | Q99: 0 | R99: 0 | AB99: 00:00:00 | AC99: 0 | AD99: 0 | AE99: 0 | AF99: 0 | AI99: 93 | AL99: 0 | AM99: =IF(torlesztes="Egyedi",-SUMIFS(V$7:V$126,U$7:U$126,">"&AK98,U$7:U$126,"<="&AK99),IFERROR(IF(torlesztes="Egyenlő tőke",IF(COUNT($AL$7:AL99)>$D$15,"",-$AL$5/$D$15),0),"")) ->  | AO99: 0 | AP99: =IF(torlesztes="Egyedi",-SUMIFS(V$7:V$126,U$7:U$126,">"&AK98,U$7:U$126,"<="&AK99),IFERROR(IF(torlesztes="Egyenlő tőke",IF(COUNT($AO$7:AO99)>$D$15,"",-$AL$5/$D$15),0),"")) -> 
K100: TRUE | P100: 0 | Q100: 0 | R100: 0 | AB100: 00:00:00 | AC100: 0 | AD100: 0 | AE100: 0 | AF100: 0 | AI100: 94 | AL100: 0 | AM100: =IF(torlesztes="Egyedi",-SUMIFS(V$7:V$126,U$7:U$126,">"&AK99,U$7:U$126,"<="&AK100),IFERROR(IF(torlesztes="Egyenlő tőke",IF(COUNT($AL$7:AL100)>$D$15,"",-$AL$5/$D$15),0),"")) ->  | AO100: 0 | AP100: =IF(torlesztes="Egyedi",-SUMIFS(V$7:V$126,U$7:U$126,">"&AK99,U$7:U$126,"<="&AK100),IFERROR(IF(torlesztes="Egyenlő tőke",IF(COUNT($AO$7:AO100)>$D$15,"",-$AL$5/$D$15),0),"")) -> 
K101: TRUE | P101: 0 | Q101: 0 | R101: 0 | AB101: 00:00:00 | AC101: 0 | AD101: 0 | AE101: 0 | AF101: 0 | AI101: 95 | AL101: 0 | AM101: =IF(torlesztes="Egyedi",-SUMIFS(V$7:V$126,U$7:U$126,">"&AK100,U$7:U$126,"<="&AK101),IFERROR(IF(torlesztes="Egyenlő tőke",IF(COUNT($AL$7:AL101)>$D$15,"",-$AL$5/$D$15),0),"")) ->  | AO101: 0 | AP101: =IF(torlesztes="Egyedi",-SUMIFS(V$7:V$126,U$7:U$126,">"&AK100,U$7:U$126,"<="&AK101),IFERROR(IF(torlesztes="Egyenlő tőke",IF(COUNT($AO$7:AO101)>$D$15,"",-$AL$5/$D$15),0),"")) -> 
K102: TRUE | P102: 0 | Q102: 0 | R102: 0 | AB102: 00:00:00 | AC102: 0 | AD102: 0 | AE102: 0 | AF102: 0 | AI102: 96 | AL102: 0 | AM102: =IF(torlesztes="Egyedi",-SUMIFS(V$7:V$126,U$7:U$126,">"&AK101,U$7:U$126,"<="&AK102),IFERROR(IF(torlesztes="Egyenlő tőke",IF(COUNT($AL$7:AL102)>$D$15,"",-$AL$5/$D$15),0),"")) ->  | AO102: 0 | AP102: =IF(torlesztes="Egyedi",-SUMIFS(V$7:V$126,U$7:U$126,">"&AK101,U$7:U$126,"<="&AK102),IFERROR(IF(torlesztes="Egyenlő tőke",IF(COUNT($AO$7:AO102)>$D$15,"",-$AL$5/$D$15),0),"")) -> 
K103: =AJ103>$D$15 -> TRUE | P103: 0 | Q103: =IF(AND(ISBLANK(M102),AI103<>1),0,IFERROR(-P103*minkamat23/365*(IF(ISBLANK(M103),$C$18,M103)-O103),"")) -> 0 | R103: =IF(AND(ISBLANK(M102),AI103<>1),0,IFERROR(-P103*tenylegeskamat/365*(IF(ISBLANK(M103),$C$18,M103)-O103),"")) -> 0 | S103: =IFERROR(IF(ISBLANK(M103),$C$18,M103)-O103,"") ->  | W103: =IF(ISNA(MAX(U102,INDEX(AK$6:AK$126,MATCH(U103-1,AK$6:AK$126,1)))),"",MAX(U102,INDEX(AK$6:AK$126,MATCH(U103-1,AK$6:AK$126,1)))) ->  | X103: =IF(ISNA(MIN(IF(OR(ISBLANK(X102),X102=""),INDEX(AL$7:AL$126,MATCH(U103,AK$7:AK$126,1)),X102-V102),INDEX(AL$7:AL$126,MATCH(U103,AK$7:AK$126,1)))),"",MIN(IF(OR(ISBLANK(X102),X102=""),INDEX(AL$7:AL$126,MATCH(U103,AK$7:AK$126,1)),X102-V102),INDEX(AL$7:AL$126,MATCH(U103,AK$7:AK$126,1)))) ->  | Y103: =IFERROR(-X103*minkamat23/365*(U103-W103),"") ->  | Z103: =IFERROR(-X103*tenylegeskamat/365*(U103-W103),"") ->  | AA103: =IFERROR(U103-W103,"") ->  | AB103: =MAX(AK102,IF(ISNA(INDEX(U$7:U$126,MATCH(AK103,U$7:U$126,1))),0,INDEX(U$7:U$126,MATCH(AK103,U$7:U$126,1)))) -> 00:00:00 | AC103: =IF(ISNA(INDEX(V$7:V$126,MATCH(AK103,U$7:U$126,1))),0,INDEX(V$7:V$126,MATCH(AK103,U$7:U$126,1))) -> 0 | AD103: =IF(ISNA(INDEX(X$7:X$126,MATCH(AK103,U$7:U$126,1))),AL103,INDEX(X$7:X$126,MATCH(AK103,U$7:U$126,1))) -> 0 | AE103: =IFERROR(-(AD103-AC103)*minkamat23/365*(AK103-AB103),0) -> 0 | AF103: =IFERROR(-(AD103-AC103)*tenylegeskamat/365*(AK103-AB103),0) -> 0 | AG103: =IFERROR(AK103-AB103,"") ->  | AI103: 97 | AL103: 0 | AM103: =IF(torlesztes="Egyedi",-SUMIFS(V$7:V$126,U$7:U$126,">"&AK102,U$7:U$126,"<="&AK103),IFERROR(IF(torlesztes="Egyenlő tőke",IF(COUNT($AL$7:AL103)>$D$15,"",-$AL$5/$D$15),0),"")) ->  | AO103: 0 | AP103: =IF(torlesztes="Egyedi",-SUMIFS(V$7:V$126,U$7:U$126,">"&AK102,U$7:U$126,"<="&AK103),IFERROR(IF(torlesztes="Egyenlő tőke",IF(COUNT($AO$7:AO103)>$D$15,"",-$AL$5/$D$15),0),"")) ->  | AT103: =IFERROR(AK103-AK102,"") -> 
K104: TRUE | P104: 0 | Q104: 0 | R104: 0 | AB104: 00:00:00 | AC104: 0 | AD104: 0 | AE104: 0 | AF104: 0 | AI104: 98 | AK104: =IF(OR(AK103=$C$19,AK103=""),"",IFERROR(IF(EDATE($C$18,(AI104-1)*12/$D$19)<=$C$19,EDATE($C$18,(AI104-1)*12/$D$19),$C$19),"")) ->  | AL104: =+IF(COUNT(AL103)<>0,SUM(AL103:AM103)*(1-K104),"") -> 0 | AM104: =IF(torlesztes="Egyedi",-SUMIFS(V$7:V$126,U$7:U$126,">"&AK103,U$7:U$126,"<="&AK104),IFERROR(IF(torlesztes="Egyenlő tőke",IF(COUNT($AL$7:AL104)>$D$15,"",-$AL$5/$D$15),0),"")) ->  | AN104: =IF(torlesztes="Egyedi",SUMIFS(Y$7:Y$126,U$7:U$126,">"&AK103,U$7:U$126,"<="&AK104)+AE104,IFERROR(-AL104*minkamat23/365*(AK104-AK103),"")) ->  | AO104: =+IF(COUNT(AO103)<>0,SUM(AO103:AP103)*(1-K104),"") -> 0 | AP104: =IF(torlesztes="Egyedi",-SUMIFS(V$7:V$126,U$7:U$126,">"&AK103,U$7:U$126,"<="&AK104),IFERROR(IF(torlesztes="Egyenlő tőke",IF(COUNT($AO$7:AO104)>$D$15,"",-$AL$5/$D$15),0),"")) ->  | AQ104: =IF(torlesztes="Egyedi",SUMIFS(Z$7:Z$126,U$7:U$126,">"&AK103,U$7:U$126,"<="&AK104)+AF104,IFERROR(-AO104*tenylegeskamat/365*(AK104-AK103),"")) -> 
K105: TRUE | P105: 0 | Q105: 0 | R105: 0 | AB105: 00:00:00 | AC105: 0 | AD105: 0 | AE105: 0 | AF105: 0 | AI105: 99 | AL105: 0 | AM105: =IF(torlesztes="Egyedi",-SUMIFS(V$7:V$126,U$7:U$126,">"&AK104,U$7:U$126,"<="&AK105),IFERROR(IF(torlesztes="Egyenlő tőke",IF(COUNT($AL$7:AL105)>$D$15,"",-$AL$5/$D$15),0),"")) ->  | AO105: 0 | AP105: =IF(torlesztes="Egyedi",-SUMIFS(V$7:V$126,U$7:U$126,">"&AK104,U$7:U$126,"<="&AK105),IFERROR(IF(torlesztes="Egyenlő tőke",IF(COUNT($AO$7:AO105)>$D$15,"",-$AL$5/$D$15),0),"")) -> 
K106: TRUE | P106: 0 | Q106: 0 | R106: 0 | AB106: 00:00:00 | AC106: 0 | AD106: 0 | AE106: 0 | AF106: 0 | AI106: 100 | AL106: 0 | AM106: =IF(torlesztes="Egyedi",-SUMIFS(V$7:V$126,U$7:U$126,">"&AK105,U$7:U$126,"<="&AK106),IFERROR(IF(torlesztes="Egyenlő tőke",IF(COUNT($AL$7:AL106)>$D$15,"",-$AL$5/$D$15),0),"")) ->  | AO106: 0 | AP106: =IF(torlesztes="Egyedi",-SUMIFS(V$7:V$126,U$7:U$126,">"&AK105,U$7:U$126,"<="&AK106),IFERROR(IF(torlesztes="Egyenlő tőke",IF(COUNT($AO$7:AO106)>$D$15,"",-$AL$5/$D$15),0),"")) -> 
K107: TRUE | P107: 0 | Q107: 0 | R107: 0 | AB107: 00:00:00 | AC107: 0 | AD107: 0 | AE107: 0 | AF107: 0 | AI107: 101 | AL107: 0 | AM107: =IF(torlesztes="Egyedi",-SUMIFS(V$7:V$126,U$7:U$126,">"&AK106,U$7:U$126,"<="&AK107),IFERROR(IF(torlesztes="Egyenlő tőke",IF(COUNT($AL$7:AL107)>$D$15,"",-$AL$5/$D$15),0),"")) ->  | AO107: 0 | AP107: =IF(torlesztes="Egyedi",-SUMIFS(V$7:V$126,U$7:U$126,">"&AK106,U$7:U$126,"<="&AK107),IFERROR(IF(torlesztes="Egyenlő tőke",IF(COUNT($AO$7:AO107)>$D$15,"",-$AL$5/$D$15),0),"")) -> 
K108: TRUE | P108: 0 | Q108: 0 | R108: 0 | AB108: 00:00:00 | AC108: 0 | AD108: 0 | AE108: 0 | AF108: 0 | AI108: 102 | AL108: 0 | AM108: =IF(torlesztes="Egyedi",-SUMIFS(V$7:V$126,U$7:U$126,">"&AK107,U$7:U$126,"<="&AK108),IFERROR(IF(torlesztes="Egyenlő tőke",IF(COUNT($AL$7:AL108)>$D$15,"",-$AL$5/$D$15),0),"")) ->  | AO108: 0 | AP108: =IF(torlesztes="Egyedi",-SUMIFS(V$7:V$126,U$7:U$126,">"&AK107,U$7:U$126,"<="&AK108),IFERROR(IF(torlesztes="Egyenlő tőke",IF(COUNT($AO$7:AO108)>$D$15,"",-$AL$5/$D$15),0),"")) -> 
K109: TRUE | P109: 0 | Q109: 0 | R109: 0 | AB109: 00:00:00 | AC109: 0 | AD109: 0 | AE109: 0 | AF109: 0 | AI109: 103 | AL109: 0 | AM109: =IF(torlesztes="Egyedi",-SUMIFS(V$7:V$126,U$7:U$126,">"&AK108,U$7:U$126,"<="&AK109),IFERROR(IF(torlesztes="Egyenlő tőke",IF(COUNT($AL$7:AL109)>$D$15,"",-$AL$5/$D$15),0),"")) ->  | AO109: 0 | AP109: =IF(torlesztes="Egyedi",-SUMIFS(V$7:V$126,U$7:U$126,">"&AK108,U$7:U$126,"<="&AK109),IFERROR(IF(torlesztes="Egyenlő tőke",IF(COUNT($AO$7:AO109)>$D$15,"",-$AL$5/$D$15),0),"")) -> 
K110: TRUE | P110: 0 | Q110: 0 | R110: 0 | AB110: 00:00:00 | AC110: 0 | AD110: 0 | AE110: 0 | AF110: 0 | AI110: 104 | AL110: 0 | AM110: =IF(torlesztes="Egyedi",-SUMIFS(V$7:V$126,U$7:U$126,">"&AK109,U$7:U$126,"<="&AK110),IFERROR(IF(torlesztes="Egyenlő tőke",IF(COUNT($AL$7:AL110)>$D$15,"",-$AL$5/$D$15),0),"")) ->  | AO110: 0 | AP110: =IF(torlesztes="Egyedi",-SUMIFS(V$7:V$126,U$7:U$126,">"&AK109,U$7:U$126,"<="&AK110),IFERROR(IF(torlesztes="Egyenlő tőke",IF(COUNT($AO$7:AO110)>$D$15,"",-$AL$5/$D$15),0),"")) -> 
K111: TRUE | P111: =IF(ISBLANK(M110),0,N110+P110) -> 0 | Q111: 0 | R111: 0 | AB111: 00:00:00 | AC111: 0 | AD111: 0 | AE111: 0 | AF111: 0 | AI111: 105 | AJ111: =IF(COUNT(AK111)=1,AJ110+1,"") ->  | AL111: 0 | AM111: =IF(torlesztes="Egyedi",-SUMIFS(V$7:V$126,U$7:U$126,">"&AK110,U$7:U$126,"<="&AK111),IFERROR(IF(torlesztes="Egyenlő tőke",IF(COUNT($AL$7:AL111)>$D$15,"",-$AL$5/$D$15),0),"")) ->  | AO111: 0 | AP111: =IF(torlesztes="Egyedi",-SUMIFS(V$7:V$126,U$7:U$126,">"&AK110,U$7:U$126,"<="&AK111),IFERROR(IF(torlesztes="Egyenlő tőke",IF(COUNT($AO$7:AO111)>$D$15,"",-$AL$5/$D$15),0),"")) ->  | AT111: =IFERROR(AK111-AK110,"") -> 
K112: TRUE | P112: 0 | Q112: 0 | R112: 0 | AB112: 00:00:00 | AC112: 0 | AD112: 0 | AE112: 0 | AF112: 0 | AI112: 106 | AL112: 0 | AM112: =IF(torlesztes="Egyedi",-SUMIFS(V$7:V$126,U$7:U$126,">"&AK111,U$7:U$126,"<="&AK112),IFERROR(IF(torlesztes="Egyenlő tőke",IF(COUNT($AL$7:AL112)>$D$15,"",-$AL$5/$D$15),0),"")) ->  | AO112: 0 | AP112: =IF(torlesztes="Egyedi",-SUMIFS(V$7:V$126,U$7:U$126,">"&AK111,U$7:U$126,"<="&AK112),IFERROR(IF(torlesztes="Egyenlő tőke",IF(COUNT($AO$7:AO112)>$D$15,"",-$AL$5/$D$15),0),"")) -> 
K113: TRUE | P113: 0 | Q113: 0 | R113: 0 | AB113: 00:00:00 | AC113: 0 | AD113: 0 | AE113: 0 | AF113: 0 | AI113: 107 | AL113: 0 | AM113: =IF(torlesztes="Egyedi",-SUMIFS(V$7:V$126,U$7:U$126,">"&AK112,U$7:U$126,"<="&AK113),IFERROR(IF(torlesztes="Egyenlő tőke",IF(COUNT($AL$7:AL113)>$D$15,"",-$AL$5/$D$15),0),"")) ->  | AO113: 0 | AP113: =IF(torlesztes="Egyedi",-SUMIFS(V$7:V$126,U$7:U$126,">"&AK112,U$7:U$126,"<="&AK113),IFERROR(IF(torlesztes="Egyenlő tőke",IF(COUNT($AO$7:AO113)>$D$15,"",-$AL$5/$D$15),0),"")) -> 
K114: TRUE | P114: 0 | Q114: 0 | R114: 0 | AB114: 00:00:00 | AC114: 0 | AD114: 0 | AE114: 0 | AF114: 0 | AI114: 108 | AL114: 0 | AM114: =IF(torlesztes="Egyedi",-SUMIFS(V$7:V$126,U$7:U$126,">"&AK113,U$7:U$126,"<="&AK114),IFERROR(IF(torlesztes="Egyenlő tőke",IF(COUNT($AL$7:AL114)>$D$15,"",-$AL$5/$D$15),0),"")) ->  | AO114: 0 | AP114: =IF(torlesztes="Egyedi",-SUMIFS(V$7:V$126,U$7:U$126,">"&AK113,U$7:U$126,"<="&AK114),IFERROR(IF(torlesztes="Egyenlő tőke",IF(COUNT($AO$7:AO114)>$D$15,"",-$AL$5/$D$15),0),"")) -> 
K115: TRUE | P115: 0 | Q115: 0 | R115: 0 | AB115: 00:00:00 | AC115: 0 | AD115: 0 | AE115: 0 | AF115: 0 | AI115: 109 | AL115: 0 | AM115: =IF(torlesztes="Egyedi",-SUMIFS(V$7:V$126,U$7:U$126,">"&AK114,U$7:U$126,"<="&AK115),IFERROR(IF(torlesztes="Egyenlő tőke",IF(COUNT($AL$7:AL115)>$D$15,"",-$AL$5/$D$15),0),"")) ->  | AO115: 0 | AP115: =IF(torlesztes="Egyedi",-SUMIFS(V$7:V$126,U$7:U$126,">"&AK114,U$7:U$126,"<="&AK115),IFERROR(IF(torlesztes="Egyenlő tőke",IF(COUNT($AO$7:AO115)>$D$15,"",-$AL$5/$D$15),0),"")) -> 
K116: TRUE | P116: 0 | Q116: 0 | R116: 0 | AB116: 00:00:00 | AC116: 0 | AD116: 0 | AE116: 0 | AF116: 0 | AI116: 110 | AL116: 0 | AM116: =IF(torlesztes="Egyedi",-SUMIFS(V$7:V$126,U$7:U$126,">"&AK115,U$7:U$126,"<="&AK116),IFERROR(IF(torlesztes="Egyenlő tőke",IF(COUNT($AL$7:AL116)>$D$15,"",-$AL$5/$D$15),0),"")) ->  | AO116: 0 | AP116: =IF(torlesztes="Egyedi",-SUMIFS(V$7:V$126,U$7:U$126,">"&AK115,U$7:U$126,"<="&AK116),IFERROR(IF(torlesztes="Egyenlő tőke",IF(COUNT($AO$7:AO116)>$D$15,"",-$AL$5/$D$15),0),"")) -> 
K117: TRUE | P117: 0 | Q117: 0 | R117: 0 | AB117: 00:00:00 | AC117: 0 | AD117: 0 | AE117: 0 | AF117: 0 | AI117: 111 | AL117: 0 | AM117: =IF(torlesztes="Egyedi",-SUMIFS(V$7:V$126,U$7:U$126,">"&AK116,U$7:U$126,"<="&AK117),IFERROR(IF(torlesztes="Egyenlő tőke",IF(COUNT($AL$7:AL117)>$D$15,"",-$AL$5/$D$15),0),"")) ->  | AO117: 0 | AP117: =IF(torlesztes="Egyedi",-SUMIFS(V$7:V$126,U$7:U$126,">"&AK116,U$7:U$126,"<="&AK117),IFERROR(IF(torlesztes="Egyenlő tőke",IF(COUNT($AO$7:AO117)>$D$15,"",-$AL$5/$D$15),0),"")) -> 
K118: TRUE | P118: 0 | Q118: 0 | R118: 0 | AB118: 00:00:00 | AC118: 0 | AD118: 0 | AE118: 0 | AF118: 0 | AI118: 112 | AL118: 0 | AM118: =IF(torlesztes="Egyedi",-SUMIFS(V$7:V$126,U$7:U$126,">"&AK117,U$7:U$126,"<="&AK118),IFERROR(IF(torlesztes="Egyenlő tőke",IF(COUNT($AL$7:AL118)>$D$15,"",-$AL$5/$D$15),0),"")) ->  | AO118: 0 | AP118: =IF(torlesztes="Egyedi",-SUMIFS(V$7:V$126,U$7:U$126,">"&AK117,U$7:U$126,"<="&AK118),IFERROR(IF(torlesztes="Egyenlő tőke",IF(COUNT($AO$7:AO118)>$D$15,"",-$AL$5/$D$15),0),"")) -> 
K119: TRUE | P119: 0 | Q119: 0 | R119: 0 | AB119: 00:00:00 | AC119: 0 | AD119: 0 | AE119: 0 | AF119: 0 | AI119: 113 | AL119: 0 | AM119: =IF(torlesztes="Egyedi",-SUMIFS(V$7:V$126,U$7:U$126,">"&AK118,U$7:U$126,"<="&AK119),IFERROR(IF(torlesztes="Egyenlő tőke",IF(COUNT($AL$7:AL119)>$D$15,"",-$AL$5/$D$15),0),"")) ->  | AO119: 0 | AP119: =IF(torlesztes="Egyedi",-SUMIFS(V$7:V$126,U$7:U$126,">"&AK118,U$7:U$126,"<="&AK119),IFERROR(IF(torlesztes="Egyenlő tőke",IF(COUNT($AO$7:AO119)>$D$15,"",-$AL$5/$D$15),0),"")) -> 
K120: TRUE | P120: 0 | Q120: 0 | R120: 0 | AB120: 00:00:00 | AC120: 0 | AD120: 0 | AE120: 0 | AF120: 0 | AI120: 114 | AL120: 0 | AM120: =IF(torlesztes="Egyedi",-SUMIFS(V$7:V$126,U$7:U$126,">"&AK119,U$7:U$126,"<="&AK120),IFERROR(IF(torlesztes="Egyenlő tőke",IF(COUNT($AL$7:AL120)>$D$15,"",-$AL$5/$D$15),0),"")) ->  | AO120: 0 | AP120: =IF(torlesztes="Egyedi",-SUMIFS(V$7:V$126,U$7:U$126,">"&AK119,U$7:U$126,"<="&AK120),IFERROR(IF(torlesztes="Egyenlő tőke",IF(COUNT($AO$7:AO120)>$D$15,"",-$AL$5/$D$15),0),"")) -> 
K121: TRUE | P121: 0 | Q121: 0 | R121: 0 | AB121: 00:00:00 | AC121: 0 | AD121: 0 | AE121: 0 | AF121: 0 | AI121: 115 | AL121: 0 | AM121: =IF(torlesztes="Egyedi",-SUMIFS(V$7:V$126,U$7:U$126,">"&AK120,U$7:U$126,"<="&AK121),IFERROR(IF(torlesztes="Egyenlő tőke",IF(COUNT($AL$7:AL121)>$D$15,"",-$AL$5/$D$15),0),"")) ->  | AO121: 0 | AP121: =IF(torlesztes="Egyedi",-SUMIFS(V$7:V$126,U$7:U$126,">"&AK120,U$7:U$126,"<="&AK121),IFERROR(IF(torlesztes="Egyenlő tőke",IF(COUNT($AO$7:AO121)>$D$15,"",-$AL$5/$D$15),0),"")) -> 
K122: TRUE | P122: 0 | Q122: 0 | R122: 0 | AB122: 00:00:00 | AC122: 0 | AD122: 0 | AE122: 0 | AF122: 0 | AI122: 116 | AL122: 0 | AM122: =IF(torlesztes="Egyedi",-SUMIFS(V$7:V$126,U$7:U$126,">"&AK121,U$7:U$126,"<="&AK122),IFERROR(IF(torlesztes="Egyenlő tőke",IF(COUNT($AL$7:AL122)>$D$15,"",-$AL$5/$D$15),0),"")) ->  | AO122: 0 | AP122: =IF(torlesztes="Egyedi",-SUMIFS(V$7:V$126,U$7:U$126,">"&AK121,U$7:U$126,"<="&AK122),IFERROR(IF(torlesztes="Egyenlő tőke",IF(COUNT($AO$7:AO122)>$D$15,"",-$AL$5/$D$15),0),"")) -> 
K123: TRUE | P123: 0 | Q123: 0 | R123: 0 | AB123: 00:00:00 | AC123: 0 | AD123: 0 | AE123: 0 | AF123: 0 | AI123: 117 | AL123: 0 | AM123: =IF(torlesztes="Egyedi",-SUMIFS(V$7:V$126,U$7:U$126,">"&AK122,U$7:U$126,"<="&AK123),IFERROR(IF(torlesztes="Egyenlő tőke",IF(COUNT($AL$7:AL123)>$D$15,"",-$AL$5/$D$15),0),"")) ->  | AO123: 0 | AP123: =IF(torlesztes="Egyedi",-SUMIFS(V$7:V$126,U$7:U$126,">"&AK122,U$7:U$126,"<="&AK123),IFERROR(IF(torlesztes="Egyenlő tőke",IF(COUNT($AO$7:AO123)>$D$15,"",-$AL$5/$D$15),0),"")) -> 
K124: TRUE | P124: 0 | Q124: 0 | R124: 0 | AB124: 00:00:00 | AC124: 0 | AD124: 0 | AE124: 0 | AF124: 0 | AI124: 118 | AL124: 0 | AM124: =IF(torlesztes="Egyedi",-SUMIFS(V$7:V$126,U$7:U$126,">"&AK123,U$7:U$126,"<="&AK124),IFERROR(IF(torlesztes="Egyenlő tőke",IF(COUNT($AL$7:AL124)>$D$15,"",-$AL$5/$D$15),0),"")) ->  | AO124: 0 | AP124: =IF(torlesztes="Egyedi",-SUMIFS(V$7:V$126,U$7:U$126,">"&AK123,U$7:U$126,"<="&AK124),IFERROR(IF(torlesztes="Egyenlő tőke",IF(COUNT($AO$7:AO124)>$D$15,"",-$AL$5/$D$15),0),"")) -> 
K125: TRUE | P125: 0 | Q125: 0 | R125: 0 | AB125: 00:00:00 | AC125: 0 | AD125: 0 | AE125: 0 | AF125: 0 | AI125: 119 | AL125: 0 | AM125: =IF(torlesztes="Egyedi",-SUMIFS(V$7:V$126,U$7:U$126,">"&AK124,U$7:U$126,"<="&AK125),IFERROR(IF(torlesztes="Egyenlő tőke",IF(COUNT($AL$7:AL125)>$D$15,"",-$AL$5/$D$15),0),"")) ->  | AO125: 0 | AP125: =IF(torlesztes="Egyedi",-SUMIFS(V$7:V$126,U$7:U$126,">"&AK124,U$7:U$126,"<="&AK125),IFERROR(IF(torlesztes="Egyenlő tőke",IF(COUNT($AO$7:AO125)>$D$15,"",-$AL$5/$D$15),0),"")) -> 
K126: TRUE | P126: 0 | Q126: 0 | R126: 0 | AB126: 00:00:00 | AC126: 0 | AD126: 0 | AE126: 0 | AF126: 0 | AI126: 120 | AL126: 0 | AM126: =IF(torlesztes="Egyedi",-SUMIFS(V$7:V$126,U$7:U$126,">"&AK125,U$7:U$126,"<="&AK126),IFERROR(IF(torlesztes="Egyenlő tőke",IF(COUNT($AL$7:AL126)>$D$15,"",-$AL$5/$D$15),0),"")) ->  | AO126: 0 | AP126: =IF(torlesztes="Egyedi",-SUMIFS(V$7:V$126,U$7:U$126,">"&AK125,U$7:U$126,"<="&AK126),IFERROR(IF(torlesztes="Egyenlő tőke",IF(COUNT($AO$7:AO126)>$D$15,"",-$AL$5/$D$15),0),"")) -> 

Sheet Szamitasok (hidden)
A1: Kizárók és KO-k
D2: Váll. Méret | E2: Mezőgazdasági | F2: Halászat/akvakultúra | I2: Régió
A3: Szorzó értéke | D3: =Tamogatastartalom!C12 -> KKV | I3: =Tamogatastartalom!C38 -> 0
A4: =PRODUCT(C4:W4) -> 1 | B4: általános | H4: 1
A5: =PRODUCT(E5:F5) -> 1 | B5: mezőgazdasági | E5: =IF(Tamogatastartalom!C13="Mezőgazdasági",1,0) -> 1 | H5: =PRODUCT(I5) -> 1 | I5: =IF(I3="Budapest",0,1) -> 1
A6: =PRODUCT(E6:F6) -> 0 | B6: halászati | F6: =IF(Tamogatastartalom!C13="Halászati",1,0) -> 0 | H6: 1

Sheet Adatok (hidden)
A1: Felárak | M1: Segédszámítások
D2: Piaci referencia | M2: Törlesztés | P2: Törlesztésgyakoriság | S2: Select | U2: Select
F3: Fedezettség | M3: Egyenlő összeg | N3: 1 | P3: Havi | Q3: 12 | S3: Beruházási hitel | U3: Beruházási hitel
F4: Magas | G4: Általános | H4: Alacsony | M4: Egyenlő tőke | N4: 2 | P4: Negyedéves | Q4: 4 | S4: Forgóeszközhitel | U4: Lízing
D5: Hitelminősítés | E5: Kiváló | F5: 60 | G5: 75 | H5: 100 | M5: Egyedi | N5: 0 | P5: Féléves | Q5: 2 | S5: Lízing
E6: Jó | F6: 75 | G6: 100 | H6: 220
E7: Kielégítő | F7: 100 | G7: 220 | H7: 400 | M7: Annuitás
E8: Gyenge | F8: 220 | G8: 400 | H8: 650
E9: Rossz | F9: 400 | G9: 650 | H9: 1000
A10: Regionális támogatási intenzitások
B11: Nagyvállalat | D11: Intenzitás | E11: MAX Támogatástartalom (mio EUR)
A12: Select | B12: 0 | D12: 0.5 | E12: 37.5
A13: Dél-Alföld | B13: 0.5 | D13: 0.35 | E13: 26.25 | I13: ügyleti kamat | J13: EUR | K13: HUF
A14: Dél-Dunántúl | B14: 0.5 | D14: 0.3 | E14: 22.5 | I14: min | J14: 0.01 | K14: 0.035
A15: Észak-Alföld | B15: 0.5 | D15: 0.25 | E15: 18.75 | I15: max | J15: =IF(Tamogatastartalom!C9="HUF",0.05,0.035) -> 0.05 | K15: 0.06
A16: Észak-Magyarország | B16: 0.5 | D16: 0.2 | E16: 15
A17: Közép-Dunántúl | B17: 0.3 | D17: 0 | E17: 0 | I17: 2.3 min kamat
A18: Pest | B18: 0.5 | I18: EUR | J18: 6 | K18: 13 | L18: 25
A19: Nyugat-Dunántúl | B19: 0.3 | I19: KKV | J19: 0.0128 | K19: 0.0146 | L19: 0.0151
A20: Budapest | B20: 0 | I20: Nagyvállalat | J20: 0.0153 | K20: 0.0189 | L20: 0.0199
I21: HUF | J21: 6 | K21: 13 | L21: 25
I22: KKV | J22: 0.114 | K22: 0.1158 | L22: 0.1163
I23: Nagyvállalat | J23: 0.1165 | K23: 0.1201 | L23: 0.1211
